Workbook

Sheet Tabeller
C1: Tabeller
B4: Statistikk Fjelloverganger i Nord-Norge
B5: Antall ganger midlertidig stengt og kolonnekjøringer i vintersesongen (1. okt-15. mai) | AC5: Oppdatert 21.05.2021 av Roar F Hanssen, VTS | AE5: Ant.Vintre | AK5: Midlertidig stengt
B6: Statistikken er tatt ut ved hjelp av Vegloggens statistikkmodul. Vegloggen er det loggføringsverktøyet som brukes på Vegtrafikksentralene. | AE6: 12
AK7: 2 | AM7: 3 | AN7: 5 | AO7: 7 | AP7: 9 | AQ7: 11 | AR7: 13 | AS7: 15 | AT7: 17 | AU7: 19 | AV7: 21 | AW7: 23
C8: Vintersesong | D8: 2009/10 | F8: 2010/11 | H8: 2011/12 | J8: 2012/13 | L8: 2013/14 | N8: 2014/15 | P8: 2015/16 | R8: 2016/17 | T8: 2017/18 | V8: 2018/19 | X8: 2019/20 | Z8: 2020/21 | AB8: SUM | AD8: SNITT | AM8: 2009/2010 | AN8: 2010/2011 | AO8: 2011/2012 | AP8: 2012/2013 | AQ8: 2013/2014 | AR8: 2014/2015 | AS8: 2015/2016 | AT8: 2016/2017 | AU8: 2017/2018 | AV8: 2018/2019 | AW8: 2019/2020 | AX8: 2020/2021
B9: Nr | C9: Fjellovergang/strekning | D9: MS2009 / 2010 | E9: KK2009 / 2010 | F9: MS2010 / 2011 | G9: KK2010 / 2011 | H9: MS2011 / 2012 | I9: KK2011 / 2012 | J9: MS2012 / 2013 | K9: KK2012 / 2013 | L9: MS2013 / 2014 | M9: KK2013 / 2014 | N9: MS2014 / 2015 | O9: KK2014 / 2015 | P9: MS2015 / 2016 | Q9: KK2015 / 2016 | R9: MS2016 / 2017 | S9: KK2016 / 2017 | T9: MS2017 / 2018 | U9: KK2017 / 2018 | V9: MS2018 / 2019 | W9: KK2018 / 2019 | X9: MS2019 / 2020 | Y9: KK2019 / 2020 | Z9: MS2020 / 2021 | AA9: KK2020 / 2021 | AB9: MSSUM | AC9: KKSUM | AD9: MSSNITT | AE9: KKSNITT | AM9: MS2009 / 2010 | AN9: MS2010 / 2011 | AO9: MS2011 / 2012 | AP9: MS2012 / 2013 | AQ9: MS2013 / 2014 | AR9: MS2014 / 2015 | AS9: MS2015 / 2016 | AT9: MS2016 / 2017 | AU9: MS2017 / 2018 | AV9: MS2018 / 2019 | AW9: MS2019 / 2020 | AX9: MS2020 / 2021
B10: Nr | C10: Fjellovergang/strekning | D10: MS | E10: KK | F10: MS | G10: KK | H10: MS | I10: KK | J10: MS | K10: KK | L10: MS | M10: KK | N10: MS | O10: KK | P10: MS | Q10: KK | R10: MS | S10: KK | T10: MS | U10: KK | V10: MS | W10: KK | X10: MS | Y10: KK | Z10: MS | AA10: KK | AB10: MS | AC10: KK | AD10: MS | AE10: KK | AM10: MS | AN10: MS | AO10: MS | AP10: MS | AQ10: MS | AR10: MS | AS10: MS | AT10: MS | AU10: MS | AV10: MS | AW10: MS | AX10: MS
B11: 1 | C11: E6 Burfjord - Alta | D11: 9 | E11: 0 | F11: 11 | G11: 0 | H11: 21 | I11: 0 | J11: 22 | K11: 0 | L11: 23 | M11: 0 | N11: 53 | O11: 0 | P11: 33 | Q11: 0 | R11: 7 | S11: 0 | T11: 13 | U11: 0 | V11: 9 | W11: 0 | X11: 21 | Y11: 0 | Z11: 30 | AA11: 1 | AB11: =SUM(T11,R11,P11,N11,L11,J11,H11,F11,D11,V11,X11) -> 222 | AC11: =SUM(U11,S11,Q11,O11,M11,K11,I11,G11,E11,W11,Y11) -> 0 | AD11: =AB11/AF11 -> 20.18181818 | AE11: =AC11/AF11 -> 0 | AF11: =COUNT(D11:Y11)/2 -> 11 | AK11: =B11 -> 1 | AL11: =VLOOKUP($AK11,Hovedtabell,AK$7,FALSE) -> E6 Burfjord - Alta | AM11: =_xlfn.XLOOKUP(AM$9,Tabell2[#Headers],Tabell2[#This Row],"-",0) -> 9 | AN11: =_xlfn.XLOOKUP(AN$9,Tabell2[#Headers],Tabell2[#This Row],"-",0) -> 11 | AO11: =_xlfn.XLOOKUP(AO$9,Tabell2[#Headers],Tabell2[#This Row],"-",0) -> 21 | AP11: =_xlfn.XLOOKUP(AP$9,Tabell2[#Headers],Tabell2[#This Row],"-",0) -> 22 | AQ11: =_xlfn.XLOOKUP(AQ$9,Tabell2[#Headers],Tabell2[#This Row],"-",0) -> 23 | AR11: =_xlfn.XLOOKUP(AR$9,Tabell2[#Headers],Tabell2[#This Row],"-",0) -> 53 | AS11: =_xlfn.XLOOKUP(AS$9,Tabell2[#Headers],Tabell2[#This Row],"-",0) -> 33 | AT11: =_xlfn.XLOOKUP(AT$9,Tabell2[#Headers],Tabell2[#This Row],"-",0) -> 7 | AU11: =_xlfn.XLOOKUP(AU$9,Tabell2[#Headers],Tabell2[#This Row],"-",0) -> 13 | AV11: =_xlfn.XLOOKUP(AV$9,Tabell2[#Headers],Tabell2[#This Row],"-",0) -> 9 | AW11: =_xlfn.XLOOKUP(AW$9,Tabell2[#Headers],Tabell2[#This Row],"-",0) -> 21 | AX11: =_xlfn.XLOOKUP(AX$9,Tabell2[#Headers],Tabell2[#This Row],"-",0) -> 30
B12: 2 | C12: E6 Hatter | D12: 3 | E12: 2 | F12: 12 | G12: 10 | H12: 3 | I12: 2 | J12: 9 | K12: 10 | L12: 13 | M12: 10 | N12: 17 | O12: 10 | P12: 8 | Q12: 6 | R12: 19 | S12: 19 | T12: 5 | U12: 4 | V12: 13 | W12: 9 | X12: 33 | Y12: 26 | Z12: 12 | AA12: 7 | AB12: =SUM(T12,R12,P12,N12,L12,J12,H12,F12,D12,V12,X12) -> 135 | AC12: =SUM(U12,S12,Q12,O12,M12,K12,I12,G12,E12,W12,Y12) -> 108 | AD12: =AB12/AF12 -> 12.27272727 | AE12: =AC12/AF12 -> 9.818181818 | AF12: =COUNT(D12:Y12)/2 -> 11 | AK12: =B12 -> 2 | AL12: E6 Hatter | AM12: =_xlfn.XLOOKUP(AM$9,Tabell2[#Headers],Tabell2[#This Row],"-",0) -> 3 | AN12: =_xlfn.XLOOKUP(AN$9,Tabell2[#Headers],Tabell2[#This Row],"-",0) -> 12 | AO12: =_xlfn.XLOOKUP(AO$9,Tabell2[#Headers],Tabell2[#This Row],"-",0) -> 3 | AP12: =_xlfn.XLOOKUP(AP$9,Tabell2[#Headers],Tabell2[#This Row],"-",0) -> 9 | AQ12: =_xlfn.XLOOKUP(AQ$9,Tabell2[#Headers],Tabell2[#This Row],"-",0) -> 13 | AR12: =_xlfn.XLOOKUP(AR$9,Tabell2[#Headers],Tabell2[#This Row],"-",0) -> 17 | AS12: =_xlfn.XLOOKUP(AS$9,Tabell2[#Headers],Tabell2[#This Row],"-",0) -> 8 | AT12: =_xlfn.XLOOKUP(AT$9,Tabell2[#Headers],Tabell2[#This Row],"-",0) -> 19 | AU12: =_xlfn.XLOOKUP(AU$9,Tabell2[#Headers],Tabell2[#This Row],"-",0) -> 5 | AV12: =_xlfn.XLOOKUP(AV$9,Tabell2[#Headers],Tabell2[#This Row],"-",0) -> 13 | AW12: =_xlfn.XLOOKUP(AW$9,Tabell2[#Headers],Tabell2[#This Row],"-",0) -> 33 | AX12: =_xlfn.XLOOKUP(AX$9,Tabell2[#Headers],Tabell2[#This Row],"-",0) -> 12
B13: 3 | C13: E6 Kråkmofjellet | D13: 5 | E13: 0 | F13: 10 | G13: 0 | H13: 3 | I13: 0 | J13: 8 | K13: 0 | L13: 11 | M13: 1 | N13: 32 | O13: 0 | P13: 3 | Q13: 0 | R13: 11 | S13: 0 | T13: 6 | U13: 0 | V13: 5 | W13: 0 | X13: 13 | Y13: 4 | Z13: 3 | AA13: 0 | AB13: 107 | AC13: 5 | AD13: 9.727272727 | AE13: 0.4545454545 | AF13: 11 | AK13: 3 | AL13: E6 Kråkmofjellet | AM13: =_xlfn.XLOOKUP(AM$9,Tabell2[#Headers],Tabell2[#This Row],"-",0) -> 5 | AN13: =_xlfn.XLOOKUP(AN$9,Tabell2[#Headers],Tabell2[#This Row],"-",0) -> 10 | AO13: =_xlfn.XLOOKUP(AO$9,Tabell2[#Headers],Tabell2[#This Row],"-",0) -> 3 | AP13: =_xlfn.XLOOKUP(AP$9,Tabell2[#Headers],Tabell2[#This Row],"-",0) -> 8 | AQ13: =_xlfn.XLOOKUP(AQ$9,Tabell2[#Headers],Tabell2[#This Row],"-",0) -> 11 | AR13: =_xlfn.XLOOKUP(AR$9,Tabell2[#Headers],Tabell2[#This Row],"-",0) -> 32 | AS13: =_xlfn.XLOOKUP(AS$9,Tabell2[#Headers],Tabell2[#This Row],"-",0) -> 3 | AT13: =_xlfn.XLOOKUP(AT$9,Tabell2[#Headers],Tabell2[#This Row],"-",0) -> 11 | AU13: =_xlfn.XLOOKUP(AU$9,Tabell2[#Headers],Tabell2[#This Row],"-",0) -> 6 | AV13: =_xlfn.XLOOKUP(AV$9,Tabell2[#Headers],Tabell2[#This Row],"-",0) -> 5 | AW13: =_xlfn.XLOOKUP(AW$9,Tabell2[#Headers],Tabell2[#This Row],"-",0) -> 13 | AX13: =_xlfn.XLOOKUP(AX$9,Tabell2[#Headers],Tabell2[#This Row],"-",0) -> 3
B14: 4 | C14: E6 Kvænangsfjellet | D14: 16 | E14: 4 | F14: 30 | G14: 8 | H14: 8 | I14: 1 | J14: 35 | K14: 18 | L14: 44 | M14: 16 | N14: 21 | O14: 11 | P14: 23 | Q14: 10 | R14: 30 | S14: 19 | T14: 33 | U14: 24 | V14: 36 | W14: 19 | X14: 97 | Y14: 59 | Z14: 32 | AA14: 24 | AB14: 373 | AC14: 189 | AD14: 33.90909091 | AE14: 17.18181818 | AF14: 11 | AK14: 4 | AL14: E6 Kvænangsfjellet | AM14: =_xlfn.XLOOKUP(AM$9,Tabell2[#Headers],Tabell2[#This Row],"-",0) -> 16 | AN14: =_xlfn.XLOOKUP(AN$9,Tabell2[#Headers],Tabell2[#This Row],"-",0) -> 30 | AO14: =_xlfn.XLOOKUP(AO$9,Tabell2[#Headers],Tabell2[#This Row],"-",0) -> 8 | AP14: =_xlfn.XLOOKUP(AP$9,Tabell2[#Headers],Tabell2[#This Row],"-",0) -> 35 | AQ14: =_xlfn.XLOOKUP(AQ$9,Tabell2[#Headers],Tabell2[#This Row],"-",0) -> 44 | AR14: =_xlfn.XLOOKUP(AR$9,Tabell2[#Headers],Tabell2[#This Row],"-",0) -> 21 | AS14: =_xlfn.XLOOKUP(AS$9,Tabell2[#Headers],Tabell2[#This Row],"-",0) -> 23 | AT14: =_xlfn.XLOOKUP(AT$9,Tabell2[#Headers],Tabell2[#This Row],"-",0) -> 30 | AU14: =_xlfn.XLOOKUP(AU$9,Tabell2[#Headers],Tabell2[#This Row],"-",0) -> 33 | AV14: =_xlfn.XLOOKUP(AV$9,Tabell2[#Headers],Tabell2[#This Row],"-",0) -> 36 | AW14: =_xlfn.XLOOKUP(AW$9,Tabell2[#Headers],Tabell2[#This Row],"-",0) -> 97 | AX14: =_xlfn.XLOOKUP(AX$9,Tabell2[#Headers],Tabell2[#This Row],"-",0) -> 32
B15: 5 | C15: E6 Saltfjellet | D15: 9 | E15: 6 | F15: 31 | G15: 28 | H15: 29 | I15: 30 | J15: 10 | K15: 7 | L15: 46 | M15: 38 | N15: 31 | O15: 31 | P15: 19 | Q15: 17 | R15: 49 | S15: 44 | T15: 12 | U15: 11 | V15: 39 | W15: 17 | X15: 88 | Y15: 78 | Z15: 31 | AA15: 22 | AB15: 363 | AC15: 307 | AD15: 33 | AE15: 27.90909091 | AF15: 11 | AK15: 5 | AL15: E6 Saltfjellet | AM15: =_xlfn.XLOOKUP(AM$9,Tabell2[#Headers],Tabell2[#This Row],"-",0) -> 9 | AN15: =_xlfn.XLOOKUP(AN$9,Tabell2[#Headers],Tabell2[#This Row],"-",0) -> 31 | AO15: =_xlfn.XLOOKUP(AO$9,Tabell2[#Headers],Tabell2[#This Row],"-",0) -> 29 | AP15: =_xlfn.XLOOKUP(AP$9,Tabell2[#Headers],Tabell2[#This Row],"-",0) -> 10 | AQ15: =_xlfn.XLOOKUP(AQ$9,Tabell2[#Headers],Tabell2[#This Row],"-",0) -> 46 | AR15: =_xlfn.XLOOKUP(AR$9,Tabell2[#Headers],Tabell2[#This Row],"-",0) -> 31 | AS15: =_xlfn.XLOOKUP(AS$9,Tabell2[#Headers],Tabell2[#This Row],"-",0) -> 19 | AT15: =_xlfn.XLOOKUP(AT$9,Tabell2[#Headers],Tabell2[#This Row],"-",0) -> 49 | AU15: =_xlfn.XLOOKUP(AU$9,Tabell2[#Headers],Tabell2[#This Row],"-",0) -> 12 | AV15: =_xlfn.XLOOKUP(AV$9,Tabell2[#Headers],Tabell2[#This Row],"-",0) -> 39 | AW15: =_xlfn.XLOOKUP(AW$9,Tabell2[#Headers],Tabell2[#This Row],"-",0) -> 88 | AX15: =_xlfn.XLOOKUP(AX$9,Tabell2[#Headers],Tabell2[#This Row],"-",0) -> 31
B16: 6 | C16: E6 Sennalandet | D16: 11 | E16: 4 | F16: 41 | G16: 34 | H16: 15 | I16: 19 | J16: 38 | K16: 31 | L16: 39 | M16: 37 | N16: 33 | O16: 20 | P16: 17 | Q16: 13 | R16: 55 | S16: 57 | T16: 28 | U16: 26 | V16: 21 | W16: 8 | X16: 62 | Y16: 104 | Z16: 24 | AA16: 17 | AB16: 360 | AC16: 353 | AD16: =AB16/AF16 -> 32.72727273 | AE16: 32.09090909 | AF16: 11 | AK16: 6 | AL16: E6 Sennalandet | AM16: =_xlfn.XLOOKUP(AM$9,Tabell2[#Headers],Tabell2[#This Row],"-",0) -> 11 | AN16: =_xlfn.XLOOKUP(AN$9,Tabell2[#Headers],Tabell2[#This Row],"-",0) -> 41 | AO16: =_xlfn.XLOOKUP(AO$9,Tabell2[#Headers],Tabell2[#This Row],"-",0) -> 15 | AP16: =_xlfn.XLOOKUP(AP$9,Tabell2[#Headers],Tabell2[#This Row],"-",0) -> 38 | AQ16: =_xlfn.XLOOKUP(AQ$9,Tabell2[#Headers],Tabell2[#This Row],"-",0) -> 39 | AR16: =_xlfn.XLOOKUP(AR$9,Tabell2[#Headers],Tabell2[#This Row],"-",0) -> 33 | AS16: =_xlfn.XLOOKUP(AS$9,Tabell2[#Headers],Tabell2[#This Row],"-",0) -> 17 | AT16: =_xlfn.XLOOKUP(AT$9,Tabell2[#Headers],Tabell2[#This Row],"-",0) -> 55 | AU16: =_xlfn.XLOOKUP(AU$9,Tabell2[#Headers],Tabell2[#This Row],"-",0) -> 28 | AV16: =_xlfn.XLOOKUP(AV$9,Tabell2[#Headers],Tabell2[#This Row],"-",0) -> 21 | AW16: =_xlfn.XLOOKUP(AW$9,Tabell2[#Headers],Tabell2[#This Row],"-",0) -> 62 | AX16: =_xlfn.XLOOKUP(AX$9,Tabell2[#Headers],Tabell2[#This Row],"-",0) -> 24
B17: 7 | C17: E6 Ulvsvågskaret | D17: 6 | E17: 0 | F17: 28 | G17: 4 | H17: 17 | I17: 0 | J17: 27 | K17: 0 | L17: 15 | M17: 0 | N17: 20 | O17: 0 | P17: 13 | Q17: 0 | R17: 7 | S17: 0 | T17: 6 | U17: 0 | V17: 13 | W17: 0 | X17: 7 | Y17: 0 | Z17: 1 | AA17: 0 | AB17: 159 | AC17: 4 | AD17: 14.45454545 | AE17: 0.3636363636 | AF17: 11 | AK17: 7 | AL17: E6 Ulvsvågskaret | AM17: =_xlfn.XLOOKUP(AM$9,Tabell2[#Headers],Tabell2[#This Row],"-",0) -> 6 | AN17: =_xlfn.XLOOKUP(AN$9,Tabell2[#Headers],Tabell2[#This Row],"-",0) -> 28 | AO17: =_xlfn.XLOOKUP(AO$9,Tabell2[#Headers],Tabell2[#This Row],"-",0) -> 17 | AP17: =_xlfn.XLOOKUP(AP$9,Tabell2[#Headers],Tabell2[#This Row],"-",0) -> 27 | AQ17: =_xlfn.XLOOKUP(AQ$9,Tabell2[#Headers],Tabell2[#This Row],"-",0) -> 15 | AR17: =_xlfn.XLOOKUP(AR$9,Tabell2[#Headers],Tabell2[#This Row],"-",0) -> 20 | AS17: =_xlfn.XLOOKUP(AS$9,Tabell2[#Headers],Tabell2[#This Row],"-",0) -> 13 | AT17: =_xlfn.XLOOKUP(AT$9,Tabell2[#Headers],Tabell2[#This Row],"-",0) -> 7 | AU17: =_xlfn.XLOOKUP(AU$9,Tabell2[#Headers],Tabell2[#This Row],"-",0) -> 6 | AV17: =_xlfn.XLOOKUP(AV$9,Tabell2[#Headers],Tabell2[#This Row],"-",0) -> 13 | AW17: =_xlfn.XLOOKUP(AW$9,Tabell2[#Headers],Tabell2[#This Row],"-",0) -> 7 | AX17: =_xlfn.XLOOKUP(AX$9,Tabell2[#Headers],Tabell2[#This Row],"-",0) -> 1
B18: 8 | C18: E10 Bjørnfjell | D18: 8 | E18: 11 | F18: 35 | G18: 30 | H18: 13 | I18: 8 | J18: 38 | K18: 21 | L18: 55 | M18: 43 | N18: 40 | O18: 18 | P18: 28 | Q18: 18 | R18: 59 | S18: 28 | T18: 22 | U18: 8 | V18: 47 | W18: 41 | X18: 65 | Y18: 63 | Z18: 32 | AA18: 19 | AB18: 410 | AC18: 289 | AD18: 37.27272727 | AE18: 26.27272727 | AF18: 11 | AK18: 8 | AL18: E10 Bjørnfjell | AM18: =_xlfn.XLOOKUP(AM$9,Tabell2[#Headers],Tabell2[#This Row],"-",0) -> 8 | AN18: =_xlfn.XLOOKUP(AN$9,Tabell2[#Headers],Tabell2[#This Row],"-",0) -> 35 | AO18: =_xlfn.XLOOKUP(AO$9,Tabell2[#Headers],Tabell2[#This Row],"-",0) -> 13 | AP18: =_xlfn.XLOOKUP(AP$9,Tabell2[#Headers],Tabell2[#This Row],"-",0) -> 38 | AQ18: =_xlfn.XLOOKUP(AQ$9,Tabell2[#Headers],Tabell2[#This Row],"-",0) -> 55 | AR18: =_xlfn.XLOOKUP(AR$9,Tabell2[#Headers],Tabell2[#This Row],"-",0) -> 40 | AS18: =_xlfn.XLOOKUP(AS$9,Tabell2[#Headers],Tabell2[#This Row],"-",0) -> 28 | AT18: =_xlfn.XLOOKUP(AT$9,Tabell2[#Headers],Tabell2[#This Row],"-",0) -> 59 | AU18: =_xlfn.XLOOKUP(AU$9,Tabell2[#Headers],Tabell2[#This Row],"-",0) -> 22 | AV18: =_xlfn.XLOOKUP(AV$9,Tabell2[#Headers],Tabell2[#This Row],"-",0) -> 47 | AW18: =_xlfn.XLOOKUP(AW$9,Tabell2[#Headers],Tabell2[#This Row],"-",0) -> 65 | AX18: =_xlfn.XLOOKUP(AX$9,Tabell2[#Headers],Tabell2[#This Row],"-",0) -> 32
B19: 9 | C19: E12 Umbukta | D19: 3 | E19: 1 | F19: 11 | G19: 2 | H19: 13 | I19: 16 | J19: 22 | K19: 3 | L19: 41 | M19: 19 | N19: 14 | O19: 8 | P19: 8 | Q19: 2 | R19: 10 | S19: 4 | T19: 6 | U19: 3 | V19: 5 | W19: 4 | X19: 25 | Y19: 16 | Z19: 12 | AA19: 1 | AB19: 158 | AC19: 78 | AD19: 14.36363636 | AE19: 7.090909091 | AF19: 11 | AK19: 9 | AL19: E12 Umbukta | AM19: =_xlfn.XLOOKUP(AM$9,Tabell2[#Headers],Tabell2[#This Row],"-",0) -> 3 | AN19: =_xlfn.XLOOKUP(AN$9,Tabell2[#Headers],Tabell2[#This Row],"-",0) -> 11 | AO19: =_xlfn.XLOOKUP(AO$9,Tabell2[#Headers],Tabell2[#This Row],"-",0) -> 13 | AP19: =_xlfn.XLOOKUP(AP$9,Tabell2[#Headers],Tabell2[#This Row],"-",0) -> 22 | AQ19: =_xlfn.XLOOKUP(AQ$9,Tabell2[#Headers],Tabell2[#This Row],"-",0) -> 41 | AR19: =_xlfn.XLOOKUP(AR$9,Tabell2[#Headers],Tabell2[#This Row],"-",0) -> 14 | AS19: =_xlfn.XLOOKUP(AS$9,Tabell2[#Headers],Tabell2[#This Row],"-",0) -> 8 | AT19: =_xlfn.XLOOKUP(AT$9,Tabell2[#Headers],Tabell2[#This Row],"-",0) -> 10 | AU19: =_xlfn.XLOOKUP(AU$9,Tabell2[#Headers],Tabell2[#This Row],"-",0) -> 6 | AV19: =_xlfn.XLOOKUP(AV$9,Tabell2[#Headers],Tabell2[#This Row],"-",0) -> 5 | AW19: =_xlfn.XLOOKUP(AW$9,Tabell2[#Headers],Tabell2[#This Row],"-",0) -> 25 | AX19: =_xlfn.XLOOKUP(AX$9,Tabell2[#Headers],Tabell2[#This Row],"-",0) -> 12
B20: 10 | C20: E69 Hønsa - Repvåg | D20: 21 | E20: 12 | F20: 33 | G20: 16 | H20: 11 | I20: 5 | J20: 41 | K20: 3 | L20: 29 | M20: 3 | N20: 28 | O20: 12 | P20: 33 | Q20: 10 | R20: 49 | S20: 20 | T20: 50 | U20: 3 | V20: 42 | W20: 15 | X20: 74 | Y20: 58 | Z20: 34 | AA20: 14 | AB20: 411 | AC20: 157 | AD20: 37.36363636 | AE20: 14.27272727 | AF20: 11 | AK20: 10 | AL20: E69 Hønsa - Repvåg | AM20: =_xlfn.XLOOKUP(AM$9,Tabell2[#Headers],Tabell2[#This Row],"-",0) -> 21 | AN20: =_xlfn.XLOOKUP(AN$9,Tabell2[#Headers],Tabell2[#This Row],"-",0) -> 33 | AO20: =_xlfn.XLOOKUP(AO$9,Tabell2[#Headers],Tabell2[#This Row],"-",0) -> 11 | AP20: =_xlfn.XLOOKUP(AP$9,Tabell2[#Headers],Tabell2[#This Row],"-",0) -> 41 | AQ20: =_xlfn.XLOOKUP(AQ$9,Tabell2[#Headers],Tabell2[#This Row],"-",0) -> 29 | AR20: =_xlfn.XLOOKUP(AR$9,Tabell2[#Headers],Tabell2[#This Row],"-",0) -> 28 | AS20: =_xlfn.XLOOKUP(AS$9,Tabell2[#Headers],Tabell2[#This Row],"-",0) -> 33 | AT20: =_xlfn.XLOOKUP(AT$9,Tabell2[#Headers],Tabell2[#This Row],"-",0) -> 49 | AU20: =_xlfn.XLOOKUP(AU$9,Tabell2[#Headers],Tabell2[#This Row],"-",0) -> 50 | AV20: =_xlfn.XLOOKUP(AV$9,Tabell2[#Headers],Tabell2[#This Row],"-",0) -> 42 | AW20: =_xlfn.XLOOKUP(AW$9,Tabell2[#Headers],Tabell2[#This Row],"-",0) -> 74 | AX20: =_xlfn.XLOOKUP(AX$9,Tabell2[#Headers],Tabell2[#This Row],"-",0) -> 34
B21: 11 | C21: E69 Nordkapptunnelen - Honningsvåg | D21: 7 | E21: 0 | F21: 15 | G21: 1 | H21: 7 | I21: 1 | J21: 29 | K21: 1 | L21: 19 | M21: 0 | N21: 23 | O21: 3 | P21: 19 | Q21: 1 | R21: 12 | S21: 0 | T21: 31 | U21: 3 | V21: 17 | W21: 1 | X21: 28 | Y21: 6 | Z21: 27 | AA21: 3 | AB21: 207 | AC21: 17 | AD21: =AB21/AF21 -> 18.81818182 | AE21: =AC21/AF21 -> 1.545454545 | AF21: 11 | AK21: 11 | AL21: E69 Nordkapptunnelen - Honningsvåg | AM21: =_xlfn.XLOOKUP(AM$9,Tabell2[#Headers],Tabell2[#This Row],"-",0) -> 7 | AN21: =_xlfn.XLOOKUP(AN$9,Tabell2[#Headers],Tabell2[#This Row],"-",0) -> 15 | AO21: =_xlfn.XLOOKUP(AO$9,Tabell2[#Headers],Tabell2[#This Row],"-",0) -> 7 | AP21: =_xlfn.XLOOKUP(AP$9,Tabell2[#Headers],Tabell2[#This Row],"-",0) -> 29 | AQ21: =_xlfn.XLOOKUP(AQ$9,Tabell2[#Headers],Tabell2[#This Row],"-",0) -> 19 | AR21: =_xlfn.XLOOKUP(AR$9,Tabell2[#Headers],Tabell2[#This Row],"-",0) -> 23 | AS21: =_xlfn.XLOOKUP(AS$9,Tabell2[#Headers],Tabell2[#This Row],"-",0) -> 19 | AT21: =_xlfn.XLOOKUP(AT$9,Tabell2[#Headers],Tabell2[#This Row],"-",0) -> 12 | AU21: =_xlfn.XLOOKUP(AU$9,Tabell2[#Headers],Tabell2[#This Row],"-",0) -> 31 | AV21: =_xlfn.XLOOKUP(AV$9,Tabell2[#Headers],Tabell2[#This Row],"-",0) -> 17 | AW21: =_xlfn.XLOOKUP(AW$9,Tabell2[#Headers],Tabell2[#This Row],"-",0) -> 28 | AX21: =_xlfn.XLOOKUP(AX$9,Tabell2[#Headers],Tabell2[#This Row],"-",0) -> 27
B22: 12 | C22: E69 Olderfjord - Honningsvåg | D22: 44 | E22: 22 | F22: 73 | G22: 33 | H22: 22 | I22: 10 | J22: 91 | K22: 7 | L22: 63 | M22: 7 | N22: 62 | O22: 24 | P22: 81 | Q22: 24 | R22: 72 | S22: 30 | T22: 107 | U22: 15 | V22: 62 | W22: 17 | X22: 108 | Y22: 71 | Z22: 66 | AA22: 18 | AB22: 785 | AC22: 260 | AD22: 71.36363636 | AE22: 23.63636364 | AF22: 11 | AK22: 12 | AL22: E69 Olderfjord - Honningsvåg | AM22: =_xlfn.XLOOKUP(AM$9,Tabell2[#Headers],Tabell2[#This Row],"-",0) -> 44 | AN22: =_xlfn.XLOOKUP(AN$9,Tabell2[#Headers],Tabell2[#This Row],"-",0) -> 73 | AO22: =_xlfn.XLOOKUP(AO$9,Tabell2[#Headers],Tabell2[#This Row],"-",0) -> 22 | AP22: =_xlfn.XLOOKUP(AP$9,Tabell2[#Headers],Tabell2[#This Row],"-",0) -> 91 | AQ22: =_xlfn.XLOOKUP(AQ$9,Tabell2[#Headers],Tabell2[#This Row],"-",0) -> 63 | AR22: =_xlfn.XLOOKUP(AR$9,Tabell2[#Headers],Tabell2[#This Row],"-",0) -> 62 | AS22: =_xlfn.XLOOKUP(AS$9,Tabell2[#Headers],Tabell2[#This Row],"-",0) -> 81 | AT22: =_xlfn.XLOOKUP(AT$9,Tabell2[#Headers],Tabell2[#This Row],"-",0) -> 72 | AU22: =_xlfn.XLOOKUP(AU$9,Tabell2[#Headers],Tabell2[#This Row],"-",0) -> 107 | AV22: =_xlfn.XLOOKUP(AV$9,Tabell2[#Headers],Tabell2[#This Row],"-",0) -> 62 | AW22: =_xlfn.XLOOKUP(AW$9,Tabell2[#Headers],Tabell2[#This Row],"-",0) -> 108 | AX22: =_xlfn.XLOOKUP(AX$9,Tabell2[#Headers],Tabell2[#This Row],"-",0) -> 66
B23: 13 | C23: E69 Olderfjord - Hønsa | D23: 0 | E23: 0 | F23: 3 | G23: 0 | H23: 1 | I23: 0 | J23: 2 | K23: 0 | L23: 3 | M23: 0 | N23: 1 | O23: 0 | P23: 1 | Q23: 0 | R23: 4 | S23: 0 | T23: 5 | U23: 0 | V23: 1 | W23: 0 | X23: 6 | Y23: 0 | Z23: 4 | AA23: 0 | AB23: 27 | AC23: 0 | AD23: =AB23/AF23 -> 2.454545455 | AE23: =AC23/AF23 -> 0 | AF23: 11 | AK23: 13 | AL23: E69 Olderfjord - Hønsa | AM23: =_xlfn.XLOOKUP(AM$9,Tabell2[#Headers],Tabell2[#This Row],"-",0) -> 0 | AN23: =_xlfn.XLOOKUP(AN$9,Tabell2[#Headers],Tabell2[#This Row],"-",0) -> 3 | AO23: =_xlfn.XLOOKUP(AO$9,Tabell2[#Headers],Tabell2[#This Row],"-",0) -> 1 | AP23: =_xlfn.XLOOKUP(AP$9,Tabell2[#Headers],Tabell2[#This Row],"-",0) -> 2 | AQ23: =_xlfn.XLOOKUP(AQ$9,Tabell2[#Headers],Tabell2[#This Row],"-",0) -> 3 | AR23: =_xlfn.XLOOKUP(AR$9,Tabell2[#Headers],Tabell2[#This Row],"-",0) -> 1 | AS23: =_xlfn.XLOOKUP(AS$9,Tabell2[#Headers],Tabell2[#This Row],"-",0) -> 1 | AT23: =_xlfn.XLOOKUP(AT$9,Tabell2[#Headers],Tabell2[#This Row],"-",0) -> 4 | AU23: =_xlfn.XLOOKUP(AU$9,Tabell2[#Headers],Tabell2[#This Row],"-",0) -> 5 | AV23: =_xlfn.XLOOKUP(AV$9,Tabell2[#Headers],Tabell2[#This Row],"-",0) -> 1 | AW23: =_xlfn.XLOOKUP(AW$9,Tabell2[#Headers],Tabell2[#This Row],"-",0) -> 6 | AX23: =_xlfn.XLOOKUP(AX$9,Tabell2[#Headers],Tabell2[#This Row],"-",0) -> 4
B24: 14 | C24: E69 Repvåg - Nordkapptunnelen | D24: 18 | E24: 10 | F24: 32 | G24: 16 | H24: 13 | I24: 6 | J24: 35 | K24: 5 | L24: 27 | M24: 5 | N24: 26 | O24: 14 | P24: 36 | Q24: 13 | R24: 48 | S24: 26 | T24: 51 | U24: 15 | V24: 35 | W24: 17 | X24: 61 | Y24: 69 | Z24: 23 | AA24: 18 | AB24: 382 | AC24: 196 | AD24: 34.72727273 | AE24: 17.81818182 | AF24: 11 | AK24: 14 | AL24: E69 Repvåg - Nordkapptunnelen | AM24: =_xlfn.XLOOKUP(AM$9,Tabell2[#Headers],Tabell2[#This Row],"-",0) -> 18 | AN24: =_xlfn.XLOOKUP(AN$9,Tabell2[#Headers],Tabell2[#This Row],"-",0) -> 32 | AO24: =_xlfn.XLOOKUP(AO$9,Tabell2[#Headers],Tabell2[#This Row],"-",0) -> 13 | AP24: =_xlfn.XLOOKUP(AP$9,Tabell2[#Headers],Tabell2[#This Row],"-",0) -> 35 | AQ24: =_xlfn.XLOOKUP(AQ$9,Tabell2[#Headers],Tabell2[#This Row],"-",0) -> 27 | AR24: =_xlfn.XLOOKUP(AR$9,Tabell2[#Headers],Tabell2[#This Row],"-",0) -> 26 | AS24: =_xlfn.XLOOKUP(AS$9,Tabell2[#Headers],Tabell2[#This Row],"-",0) -> 36 | AT24: =_xlfn.XLOOKUP(AT$9,Tabell2[#Headers],Tabell2[#This Row],"-",0) -> 48 | AU24: =_xlfn.XLOOKUP(AU$9,Tabell2[#Headers],Tabell2[#This Row],"-",0) -> 51 | AV24: =_xlfn.XLOOKUP(AV$9,Tabell2[#Headers],Tabell2[#This Row],"-",0) -> 35 | AW24: =_xlfn.XLOOKUP(AW$9,Tabell2[#Headers],Tabell2[#This Row],"-",0) -> 61 | AX24: =_xlfn.XLOOKUP(AX$9,Tabell2[#Headers],Tabell2[#This Row],"-",0) -> 23
B25: 15 | C25: E69 Skarsvåg - Nordkapp | D25: 9 | E25: 5 | F25: 18 | G25: 7 | H25: 23 | I25: 19 | J25: 21 | K25: 22 | L25: 13 | M25: 24 | N25: 16 | O25: 20 | P25: 8 | Q25: 11 | R25: 39 | S25: 36 | T25: 26 | U25: 40 | V25: 25 | W25: 31 | X25: 51 | Y25: 38 | Z25: 39 | AA25: 37 | AB25: 249 | AC25: 253 | AD25: 22.63636364 | AE25: 23 | AF25: 11 | AK25: 15 | AL25: E69 Skarsvåg - Nordkapp | AM25: =_xlfn.XLOOKUP(AM$9,Tabell2[#Headers],Tabell2[#This Row],"-",0) -> 9 | AN25: =_xlfn.XLOOKUP(AN$9,Tabell2[#Headers],Tabell2[#This Row],"-",0) -> 18 | AO25: =_xlfn.XLOOKUP(AO$9,Tabell2[#Headers],Tabell2[#This Row],"-",0) -> 23 | AP25: =_xlfn.XLOOKUP(AP$9,Tabell2[#Headers],Tabell2[#This Row],"-",0) -> 21 | AQ25: =_xlfn.XLOOKUP(AQ$9,Tabell2[#Headers],Tabell2[#This Row],"-",0) -> 13 | AR25: =_xlfn.XLOOKUP(AR$9,Tabell2[#Headers],Tabell2[#This Row],"-",0) -> 16 | AS25: =_xlfn.XLOOKUP(AS$9,Tabell2[#Headers],Tabell2[#This Row],"-",0) -> 8 | AT25: =_xlfn.XLOOKUP(AT$9,Tabell2[#Headers],Tabell2[#This Row],"-",0) -> 39 | AU25: =_xlfn.XLOOKUP(AU$9,Tabell2[#Headers],Tabell2[#This Row],"-",0) -> 26 | AV25: =_xlfn.XLOOKUP(AV$9,Tabell2[#Headers],Tabell2[#This Row],"-",0) -> 25 | AW25: =_xlfn.XLOOKUP(AW$9,Tabell2[#Headers],Tabell2[#This Row],"-",0) -> 51 | AX25: =_xlfn.XLOOKUP(AX$9,Tabell2[#Headers],Tabell2[#This Row],"-",0) -> 39
B26: 16 | C26: E69 Skipsfjordhøgda - Skarsvåg | D26: 6 | E26: 19 | F26: 22 | G26: 52 | H26: 7 | I26: 12 | J26: 27 | K26: 31 | L26: 32 | M26: 23 | N26: 22 | O26: 27 | P26: 16 | Q26: 7 | R26: 30 | S26: 12 | T26: 34 | U26: 10 | V26: 25 | W26: 20 | X26: 64 | Y26: 61 | Z26: 17 | AA26: 25 | AB26: 285 | AC26: 274 | AD26: 25.90909091 | AE26: 24.90909091 | AF26: 11 | AK26: 16 | AL26: E69 Skipsfjordhøgda - Skarsvåg | AM26: =_xlfn.XLOOKUP(AM$9,Tabell2[#Headers],Tabell2[#This Row],"-",0) -> 6 | AN26: =_xlfn.XLOOKUP(AN$9,Tabell2[#Headers],Tabell2[#This Row],"-",0) -> 22 | AO26: =_xlfn.XLOOKUP(AO$9,Tabell2[#Headers],Tabell2[#This Row],"-",0) -> 7 | AP26: =_xlfn.XLOOKUP(AP$9,Tabell2[#Headers],Tabell2[#This Row],"-",0) -> 27 | AQ26: =_xlfn.XLOOKUP(AQ$9,Tabell2[#Headers],Tabell2[#This Row],"-",0) -> 32 | AR26: =_xlfn.XLOOKUP(AR$9,Tabell2[#Headers],Tabell2[#This Row],"-",0) -> 22 | AS26: =_xlfn.XLOOKUP(AS$9,Tabell2[#Headers],Tabell2[#This Row],"-",0) -> 16 | AT26: =_xlfn.XLOOKUP(AT$9,Tabell2[#Headers],Tabell2[#This Row],"-",0) -> 30 | AU26: =_xlfn.XLOOKUP(AU$9,Tabell2[#Headers],Tabell2[#This Row],"-",0) -> 34 | AV26: =_xlfn.XLOOKUP(AV$9,Tabell2[#Headers],Tabell2[#This Row],"-",0) -> 25 | AW26: =_xlfn.XLOOKUP(AW$9,Tabell2[#Headers],Tabell2[#This Row],"-",0) -> 64 | AX26: =_xlfn.XLOOKUP(AX$9,Tabell2[#Headers],Tabell2[#This Row],"-",0) -> 17
B27: 17 | C27: Rv 73 Krutfjellet | D27: 1 | E27: 0 | F27: 4 | G27: 0 | H27: 4 | I27: 2 | J27: 1 | K27: 0 | L27: 4 | M27: 0 | N27: 4 | O27: 1 | P27: 5 | Q27: 0 | R27: 2 | S27: 4 | T27: 4 | U27: 1 | V27: 3 | W27: 2 | X27: 9 | Y27: 1 | Z27: 3 | AA27: 0 | AB27: 41 | AC27: 11 | AD27: 3.727272727 | AE27: 1 | AF27: 11 | AK27: 17 | AL27: Rv 73 Krutfjellet | AM27: =_xlfn.XLOOKUP(AM$9,Tabell2[#Headers],Tabell2[#This Row],"-",0) -> 1 | AN27: =_xlfn.XLOOKUP(AN$9,Tabell2[#Headers],Tabell2[#This Row],"-",0) -> 4 | AO27: =_xlfn.XLOOKUP(AO$9,Tabell2[#Headers],Tabell2[#This Row],"-",0) -> 4 | AP27: =_xlfn.XLOOKUP(AP$9,Tabell2[#Headers],Tabell2[#This Row],"-",0) -> 1 | AQ27: =_xlfn.XLOOKUP(AQ$9,Tabell2[#Headers],Tabell2[#This Row],"-",0) -> 4 | AR27: =_xlfn.XLOOKUP(AR$9,Tabell2[#Headers],Tabell2[#This Row],"-",0) -> 4 | AS27: =_xlfn.XLOOKUP(AS$9,Tabell2[#Headers],Tabell2[#This Row],"-",0) -> 5 | AT27: =_xlfn.XLOOKUP(AT$9,Tabell2[#Headers],Tabell2[#This Row],"-",0) -> 2 | AU27: =_xlfn.XLOOKUP(AU$9,Tabell2[#Headers],Tabell2[#This Row],"-",0) -> 4 | AV27: =_xlfn.XLOOKUP(AV$9,Tabell2[#Headers],Tabell2[#This Row],"-",0) -> 3 | AW27: =_xlfn.XLOOKUP(AW$9,Tabell2[#Headers],Tabell2[#This Row],"-",0) -> 9 | AX27: =_xlfn.XLOOKUP(AX$9,Tabell2[#Headers],Tabell2[#This Row],"-",0) -> 3
B28: 18 | C28: Rv 77 Graddis | D28: 6 | E28: 0 | F28: 6 | G28: 0 | H28: 6 | I28: 0 | J28: 8 | K28: 0 | L28: 8 | M28: 0 | N28: 2 | O28: 1 | P28: 10 | Q28: 0 | R28: 15 | S28: 0 | T28: 8 | U28: 0 | V28: 5 | W28: 0 | X28: 9 | Y28: 1 | Z28: 2 | AA28: 0 | AB28: 83 | AC28: 2 | AD28: 7.545454545 | AE28: 0.1818181818 | AF28: 11 | AK28: 18 | AL28: Rv 77 Graddis | AM28: =_xlfn.XLOOKUP(AM$9,Tabell2[#Headers],Tabell2[#This Row],"-",0) -> 6 | AN28: =_xlfn.XLOOKUP(AN$9,Tabell2[#Headers],Tabell2[#This Row],"-",0) -> 6 | AO28: =_xlfn.XLOOKUP(AO$9,Tabell2[#Headers],Tabell2[#This Row],"-",0) -> 6 | AP28: =_xlfn.XLOOKUP(AP$9,Tabell2[#Headers],Tabell2[#This Row],"-",0) -> 8 | AQ28: =_xlfn.XLOOKUP(AQ$9,Tabell2[#Headers],Tabell2[#This Row],"-",0) -> 8 | AR28: =_xlfn.XLOOKUP(AR$9,Tabell2[#Headers],Tabell2[#This Row],"-",0) -> 2 | AS28: =_xlfn.XLOOKUP(AS$9,Tabell2[#Headers],Tabell2[#This Row],"-",0) -> 10 | AT28: =_xlfn.XLOOKUP(AT$9,Tabell2[#Headers],Tabell2[#This Row],"-",0) -> 15 | AU28: =_xlfn.XLOOKUP(AU$9,Tabell2[#Headers],Tabell2[#This Row],"-",0) -> 8 | AV28: =_xlfn.XLOOKUP(AV$9,Tabell2[#Headers],Tabell2[#This Row],"-",0) -> 5 | AW28: =_xlfn.XLOOKUP(AW$9,Tabell2[#Headers],Tabell2[#This Row],"-",0) -> 9 | AX28: =_xlfn.XLOOKUP(AX$9,Tabell2[#Headers],Tabell2[#This Row],"-",0) -> 2
B29: 19 | C29: Rv 92 Kautokeino - Karasjok | D29: 0 | E29: 0 | F29: 0 | G29: 0 | H29: 2 | I29: 0 | J29: 5 | K29: 0 | L29: 6 | M29: 0 | N29: 2 | O29: 0 | P29: 4 | Q29: 1 | R29: 8 | S29: 0 | T29: 1 | U29: 0 | V29: 10 | W29: 0 | X29: 3 | Y29: 0 | Z29: 5 | AA29: 0 | AB29: 41 | AC29: 1 | AD29: 3.727272727 | AE29: 0.09090909091 | AF29: 11 | AK29: 19 | AL29: Rv 92 Kautokeino - Karasjok | AM29: =_xlfn.XLOOKUP(AM$9,Tabell2[#Headers],Tabell2[#This Row],"-",0) -> 0 | AN29: =_xlfn.XLOOKUP(AN$9,Tabell2[#Headers],Tabell2[#This Row],"-",0) -> 0 | AO29: =_xlfn.XLOOKUP(AO$9,Tabell2[#Headers],Tabell2[#This Row],"-",0) -> 2 | AP29: =_xlfn.XLOOKUP(AP$9,Tabell2[#Headers],Tabell2[#This Row],"-",0) -> 5 | AQ29: =_xlfn.XLOOKUP(AQ$9,Tabell2[#Headers],Tabell2[#This Row],"-",0) -> 6 | AR29: =_xlfn.XLOOKUP(AR$9,Tabell2[#Headers],Tabell2[#This Row],"-",0) -> 2 | AS29: =_xlfn.XLOOKUP(AS$9,Tabell2[#Headers],Tabell2[#This Row],"-",0) -> 4 | AT29: =_xlfn.XLOOKUP(AT$9,Tabell2[#Headers],Tabell2[#This Row],"-",0) -> 8 | AU29: =_xlfn.XLOOKUP(AU$9,Tabell2[#Headers],Tabell2[#This Row],"-",0) -> 1 | AV29: =_xlfn.XLOOKUP(AV$9,Tabell2[#Headers],Tabell2[#This Row],"-",0) -> 10 | AW29: =_xlfn.XLOOKUP(AW$9,Tabell2[#Headers],Tabell2[#This Row],"-",0) -> 3 | AX29: =_xlfn.XLOOKUP(AX$9,Tabell2[#Headers],Tabell2[#This Row],"-",0) -> 5
B30: 20 | C30: E45 Kautokeino - Alta | D30: 4 | E30: 0 | F30: 17 | G30: 0 | H30: 2 | I30: 0 | J30: 7 | K30: 0 | L30: 13 | M30: 0 | N30: 4 | O30: 0 | P30: 7 | Q30: 1 | R30: 16 | S30: 2 | T30: 3 | U30: 0 | V30: 16 | W30: 0 | X30: 12 | Y30: 0 | Z30: 20 | AA30: 0 | AB30: 101 | AC30: 3 | AD30: 9.181818182 | AE30: 0.2727272727 | AF30: 11 | AK30: 20 | AL30: E45 Kautokeino - Alta | AM30: =_xlfn.XLOOKUP(AM$9,Tabell2[#Headers],Tabell2[#This Row],"-",0) -> 4 | AN30: =_xlfn.XLOOKUP(AN$9,Tabell2[#Headers],Tabell2[#This Row],"-",0) -> 17 | AO30: =_xlfn.XLOOKUP(AO$9,Tabell2[#Headers],Tabell2[#This Row],"-",0) -> 2 | AP30: =_xlfn.XLOOKUP(AP$9,Tabell2[#Headers],Tabell2[#This Row],"-",0) -> 7 | AQ30: =_xlfn.XLOOKUP(AQ$9,Tabell2[#Headers],Tabell2[#This Row],"-",0) -> 13 | AR30: =_xlfn.XLOOKUP(AR$9,Tabell2[#Headers],Tabell2[#This Row],"-",0) -> 4 | AS30: =_xlfn.XLOOKUP(AS$9,Tabell2[#Headers],Tabell2[#This Row],"-",0) -> 7 | AT30: =_xlfn.XLOOKUP(AT$9,Tabell2[#Headers],Tabell2[#This Row],"-",0) -> 16 | AU30: =_xlfn.XLOOKUP(AU$9,Tabell2[#Headers],Tabell2[#This Row],"-",0) -> 3 | AV30: =_xlfn.XLOOKUP(AV$9,Tabell2[#Headers],Tabell2[#This Row],"-",0) -> 16 | AW30: =_xlfn.XLOOKUP(AW$9,Tabell2[#Headers],Tabell2[#This Row],"-",0) -> 12 | AX30: =_xlfn.XLOOKUP(AX$9,Tabell2[#Headers],Tabell2[#This Row],"-",0) -> 20
B31: 21 | C31: Rv 94 Kvalsund - Hammerfest | D31: 8 | E31: 3 | F31: 25 | G31: 13 | H31: 7 | I31: 4 | J31: 18 | K31: 6 | L31: 14 | M31: 6 | N31: 23 | O31: 3 | P31: 29 | Q31: 6 | R31: 23 | S31: 4 | T31: 10 | U31: 1 | V31: 24 | W31: 3 | X31: 36 | Y31: 17 | Z31: 20 | AA31: 2 | AB31: 217 | AC31: 66 | AD31: 19.72727273 | AE31: 6 | AF31: 11 | AK31: 21 | AL31: Rv 94 Kvalsund - Hammerfest | AM31: =_xlfn.XLOOKUP(AM$9,Tabell2[#Headers],Tabell2[#This Row],"-",0) -> 8 | AN31: =_xlfn.XLOOKUP(AN$9,Tabell2[#Headers],Tabell2[#This Row],"-",0) -> 25 | AO31: =_xlfn.XLOOKUP(AO$9,Tabell2[#Headers],Tabell2[#This Row],"-",0) -> 7 | AP31: =_xlfn.XLOOKUP(AP$9,Tabell2[#Headers],Tabell2[#This Row],"-",0) -> 18 | AQ31: =_xlfn.XLOOKUP(AQ$9,Tabell2[#Headers],Tabell2[#This Row],"-",0) -> 14 | AR31: =_xlfn.XLOOKUP(AR$9,Tabell2[#Headers],Tabell2[#This Row],"-",0) -> 23 | AS31: =_xlfn.XLOOKUP(AS$9,Tabell2[#Headers],Tabell2[#This Row],"-",0) -> 29 | AT31: =_xlfn.XLOOKUP(AT$9,Tabell2[#Headers],Tabell2[#This Row],"-",0) -> 23 | AU31: =_xlfn.XLOOKUP(AU$9,Tabell2[#Headers],Tabell2[#This Row],"-",0) -> 10 | AV31: =_xlfn.XLOOKUP(AV$9,Tabell2[#Headers],Tabell2[#This Row],"-",0) -> 24 | AW31: =_xlfn.XLOOKUP(AW$9,Tabell2[#Headers],Tabell2[#This Row],"-",0) -> 36 | AX31: =_xlfn.XLOOKUP(AX$9,Tabell2[#Headers],Tabell2[#This Row],"-",0) -> 20
B32: 22 | C32: Fv 8038 Gjesværkrysset - Gjesvær | D32: 9 | E32: 16 | F32: 20 | G32: 52 | H32: 8 | I32: 11 | J32: 26 | K32: 31 | L32: 30 | M32: 22 | N32: 18 | O32: 29 | P32: 16 | Q32: 7 | R32: 32 | S32: 14 | T32: 28 | U32: 10 | V32: 18 | W32: 18 | X32: 65 | Y32: 55 | Z32: 21 | AA32: 22 | AB32: 270 | AC32: 265 | AD32: 24.54545455 | AE32: 24.09090909 | AF32: 11 | AK32: 22 | AL32: Fv 8038 Gjesværkrysset - Gjesvær | AM32: =_xlfn.XLOOKUP(AM$9,Tabell2[#Headers],Tabell2[#This Row],"-",0) -> 9 | AN32: =_xlfn.XLOOKUP(AN$9,Tabell2[#Headers],Tabell2[#This Row],"-",0) -> 20 | AO32: =_xlfn.XLOOKUP(AO$9,Tabell2[#Headers],Tabell2[#This Row],"-",0) -> 8 | AP32: =_xlfn.XLOOKUP(AP$9,Tabell2[#Headers],Tabell2[#This Row],"-",0) -> 26 | AQ32: =_xlfn.XLOOKUP(AQ$9,Tabell2[#Headers],Tabell2[#This Row],"-",0) -> 30 | AR32: =_xlfn.XLOOKUP(AR$9,Tabell2[#Headers],Tabell2[#This Row],"-",0) -> 18 | AS32: =_xlfn.XLOOKUP(AS$9,Tabell2[#Headers],Tabell2[#This Row],"-",0) -> 16 | AT32: =_xlfn.XLOOKUP(AT$9,Tabell2[#Headers],Tabell2[#This Row],"-",0) -> 32 | AU32: =_xlfn.XLOOKUP(AU$9,Tabell2[#Headers],Tabell2[#This Row],"-",0) -> 28 | AV32: =_xlfn.XLOOKUP(AV$9,Tabell2[#Headers],Tabell2[#This Row],"-",0) -> 18 | AW32: =_xlfn.XLOOKUP(AW$9,Tabell2[#Headers],Tabell2[#This Row],"-",0) -> 65 | AX32: =_xlfn.XLOOKUP(AX$9,Tabell2[#Headers],Tabell2[#This Row],"-",0) -> 21
B33: 23 | C33: Fv 889 Smørfjord - Havøysund | D33: - | E33: - | F33: 34 | G33: 54 | H33: 12 | I33: 6 | J33: 37 | K33: 38 | L33: 31 | M33: 39 | N33: 34 | O33: 26 | P33: 36 | Q33: 44 | R33: 53 | S33: 40 | T33: 37 | U33: 33 | V33: 41 | W33: 41 | X33: 79 | Y33: 69 | Z33: 36 | AA33: 16 | AB33: 394 | AC33: 390 | AD33: 39.4 | AE33: 39 | AF33: 10 | AK33: 23 | AL33: Fv 889 Smørfjord - Havøysund | AM33: =_xlfn.XLOOKUP(AM$9,Tabell2[#Headers],Tabell2[#This Row],"-",0) -> - | AN33: =_xlfn.XLOOKUP(AN$9,Tabell2[#Headers],Tabell2[#This Row],"-",0) -> 34 | AO33: =_xlfn.XLOOKUP(AO$9,Tabell2[#Headers],Tabell2[#This Row],"-",0) -> 12 | AP33: =_xlfn.XLOOKUP(AP$9,Tabell2[#Headers],Tabell2[#This Row],"-",0) -> 37 | AQ33: =_xlfn.XLOOKUP(AQ$9,Tabell2[#Headers],Tabell2[#This Row],"-",0) -> 31 | AR33: =_xlfn.XLOOKUP(AR$9,Tabell2[#Headers],Tabell2[#This Row],"-",0) -> 34 | AS33: =_xlfn.XLOOKUP(AS$9,Tabell2[#Headers],Tabell2[#This Row],"-",0) -> 36 | AT33: =_xlfn.XLOOKUP(AT$9,Tabell2[#Headers],Tabell2[#This Row],"-",0) -> 53 | AU33: =_xlfn.XLOOKUP(AU$9,Tabell2[#Headers],Tabell2[#This Row],"-",0) -> 37 | AV33: =_xlfn.XLOOKUP(AV$9,Tabell2[#Headers],Tabell2[#This Row],"-",0) -> 41 | AW33: =_xlfn.XLOOKUP(AW$9,Tabell2[#Headers],Tabell2[#This Row],"-",0) -> 79 | AX33: =_xlfn.XLOOKUP(AX$9,Tabell2[#Headers],Tabell2[#This Row],"-",0) -> 36
B34: 24 | C34: Fv 891 Båtsfjordfjellet | D34: - | E34: - | F34: 27 | G34: 75 | H34: 6 | I34: 44 | J34: 17 | K34: 75 | L34: 38 | M34: 61 | N34: 41 | O34: 69 | P34: 33 | Q34: 30 | R34: 65 | S34: 50 | T34: 34 | U34: 41 | V34: 19 | W34: 31 | X34: 46 | Y34: 86 | Z34: 24 | AA34: 36 | AB34: 326 | AC34: 562 | AD34: =AB34/AF34 -> 32.6 | AE34: =AC34/AF34 -> 56.2 | AF34: 10 | AK34: =B34 -> 24 | AL34: =VLOOKUP($AK34,Hovedtabell,AK$7,FALSE) -> Fv 891 Båtsfjordfjellet | AM34: =_xlfn.XLOOKUP(AM$9,Tabell2[#Headers],Tabell2[#This Row],"-",0) -> - | AN34: =_xlfn.XLOOKUP(AN$9,Tabell2[#Headers],Tabell2[#This Row],"-",0) -> 27 | AO34: =_xlfn.XLOOKUP(AO$9,Tabell2[#Headers],Tabell2[#This Row],"-",0) -> 6 | AP34: =_xlfn.XLOOKUP(AP$9,Tabell2[#Headers],Tabell2[#This Row],"-",0) -> 17 | AQ34: =_xlfn.XLOOKUP(AQ$9,Tabell2[#Headers],Tabell2[#This Row],"-",0) -> 38 | AR34: =_xlfn.XLOOKUP(AR$9,Tabell2[#Headers],Tabell2[#This Row],"-",0) -> 41 | AS34: =_xlfn.XLOOKUP(AS$9,Tabell2[#Headers],Tabell2[#This Row],"-",0) -> 33 | AT34: =_xlfn.XLOOKUP(AT$9,Tabell2[#Headers],Tabell2[#This Row],"-",0) -> 65 | AU34: =_xlfn.XLOOKUP(AU$9,Tabell2[#Headers],Tabell2[#This Row],"-",0) -> 34 | AV34: =_xlfn.XLOOKUP(AV$9,Tabell2[#Headers],Tabell2[#This Row],"-",0) -> 19 | AW34: =_xlfn.XLOOKUP(AW$9,Tabell2[#Headers],Tabell2[#This Row],"-",0) -> 46 | AX34: =_xlfn.XLOOKUP(AX$9,Tabell2[#Headers],Tabell2[#This Row],"-",0) -> 24
B35: 25 | C35: E75 Domen (Kiberg-Vardø) | D35: 8 | E35: 1 | F35: 12 | G35: 13 | H35: 0 | I35: 0 | J35: 8 | K35: 6 | L35: 7 | M35: 6 | N35: 7 | O35: 0 | P35: 2 | Q35: 0 | R35: 11 | S35: 4 | T35: 14 | U35: 8 | V35: 8 | W35: 2 | X35: 40 | Y35: 35 | Z35: 24 | AA35: 5 | AB35: 117 | AC35: 75 | AD35: 10.63636364 | AE35: 6.818181818 | AF35: 11 | AK35: 25 | AL35: E75 Domen (Kiberg-Vardø) | AM35: =_xlfn.XLOOKUP(AM$9,Tabell2[#Headers],Tabell2[#This Row],"-",0) -> 8 | AN35: =_xlfn.XLOOKUP(AN$9,Tabell2[#Headers],Tabell2[#This Row],"-",0) -> 12 | AO35: =_xlfn.XLOOKUP(AO$9,Tabell2[#Headers],Tabell2[#This Row],"-",0) -> 0 | AP35: =_xlfn.XLOOKUP(AP$9,Tabell2[#Headers],Tabell2[#This Row],"-",0) -> 8 | AQ35: =_xlfn.XLOOKUP(AQ$9,Tabell2[#Headers],Tabell2[#This Row],"-",0) -> 7 | AR35: =_xlfn.XLOOKUP(AR$9,Tabell2[#Headers],Tabell2[#This Row],"-",0) -> 7 | AS35: =_xlfn.XLOOKUP(AS$9,Tabell2[#Headers],Tabell2[#This Row],"-",0) -> 2 | AT35: =_xlfn.XLOOKUP(AT$9,Tabell2[#Headers],Tabell2[#This Row],"-",0) -> 11 | AU35: =_xlfn.XLOOKUP(AU$9,Tabell2[#Headers],Tabell2[#This Row],"-",0) -> 14 | AV35: =_xlfn.XLOOKUP(AV$9,Tabell2[#Headers],Tabell2[#This Row],"-",0) -> 8 | AW35: =_xlfn.XLOOKUP(AW$9,Tabell2[#Headers],Tabell2[#This Row],"-",0) -> 40 | AX35: =_xlfn.XLOOKUP(AX$9,Tabell2[#Headers],Tabell2[#This Row],"-",0) -> 24
B36: 26 | C36: Fv 888 Nordkynvegen (Ifjord - Mehamn) | D36: - | E36: - | F36: 66 | G36: 137 | H36: 35 | I36: 48 | J36: 44 | K36: 65 | L36: 47 | M36: 62 | N36: 31 | O36: 43 | P36: 69 | Q36: 66 | R36: 89 | S36: 117 | T36: 54 | U36: 71 | V36: 64 | W36: 74 | X36: 137 | Y36: 177 | Z36: 53 | AA36: 74 | AB36: 636 | AC36: 860 | AD36: 63.6 | AE36: 86 | AF36: 10 | AK36: 26 | AL36: Fv 888 Nordkynvegen (Ifjord - Mehamn) | AM36: =_xlfn.XLOOKUP(AM$9,Tabell2[#Headers],Tabell2[#This Row],"-",0) -> - | AN36: =_xlfn.XLOOKUP(AN$9,Tabell2[#Headers],Tabell2[#This Row],"-",0) -> 66 | AO36: =_xlfn.XLOOKUP(AO$9,Tabell2[#Headers],Tabell2[#This Row],"-",0) -> 35 | AP36: =_xlfn.XLOOKUP(AP$9,Tabell2[#Headers],Tabell2[#This Row],"-",0) -> 44 | AQ36: =_xlfn.XLOOKUP(AQ$9,Tabell2[#Headers],Tabell2[#This Row],"-",0) -> 47 | AR36: =_xlfn.XLOOKUP(AR$9,Tabell2[#Headers],Tabell2[#This Row],"-",0) -> 31 | AS36: =_xlfn.XLOOKUP(AS$9,Tabell2[#Headers],Tabell2[#This Row],"-",0) -> 69 | AT36: =_xlfn.XLOOKUP(AT$9,Tabell2[#Headers],Tabell2[#This Row],"-",0) -> 89 | AU36: =_xlfn.XLOOKUP(AU$9,Tabell2[#Headers],Tabell2[#This Row],"-",0) -> 54 | AV36: =_xlfn.XLOOKUP(AV$9,Tabell2[#Headers],Tabell2[#This Row],"-",0) -> 64 | AW36: =_xlfn.XLOOKUP(AW$9,Tabell2[#Headers],Tabell2[#This Row],"-",0) -> 137 | AX36: =_xlfn.XLOOKUP(AX$9,Tabell2[#Headers],Tabell2[#This Row],"-",0) -> 53
B37: 27 | C37: Fv 98 Ifjordfjellet | D37: - | E37: - | F37: 44 | G37: 110 | H37: 29 | I37: 54 | J37: 19 | K37: 57 | L37: 21 | M37: 49 | N37: 12 | O37: 25 | P37: 21 | Q37: 37 | R37: 23 | S37: 56 | T37: 25 | U37: 39 | V37: 17 | W37: 39 | X37: 36 | Y37: 84 | Z37: 13 | AA37: 36 | AB37: 247 | AC37: 550 | AD37: =AB37/AF37 -> 24.7 | AE37: =AC37/AF37 -> 55 | AF37: 10 | AK37: 27 | AL37: Fv 98 Ifjordfjellet | AM37: =_xlfn.XLOOKUP(AM$9,Tabell2[#Headers],Tabell2[#This Row],"-",0) -> - | AN37: =_xlfn.XLOOKUP(AN$9,Tabell2[#Headers],Tabell2[#This Row],"-",0) -> 44 | AO37: =_xlfn.XLOOKUP(AO$9,Tabell2[#Headers],Tabell2[#This Row],"-",0) -> 29 | AP37: =_xlfn.XLOOKUP(AP$9,Tabell2[#Headers],Tabell2[#This Row],"-",0) -> 19 | AQ37: =_xlfn.XLOOKUP(AQ$9,Tabell2[#Headers],Tabell2[#This Row],"-",0) -> 21 | AR37: =_xlfn.XLOOKUP(AR$9,Tabell2[#Headers],Tabell2[#This Row],"-",0) -> 12 | AS37: =_xlfn.XLOOKUP(AS$9,Tabell2[#Headers],Tabell2[#This Row],"-",0) -> 21 | AT37: =_xlfn.XLOOKUP(AT$9,Tabell2[#Headers],Tabell2[#This Row],"-",0) -> 23 | AU37: =_xlfn.XLOOKUP(AU$9,Tabell2[#Headers],Tabell2[#This Row],"-",0) -> 25 | AV37: =_xlfn.XLOOKUP(AV$9,Tabell2[#Headers],Tabell2[#This Row],"-",0) -> 17 | AW37: =_xlfn.XLOOKUP(AW$9,Tabell2[#Headers],Tabell2[#This Row],"-",0) -> 36 | AX37: =_xlfn.XLOOKUP(AX$9,Tabell2[#Headers],Tabell2[#This Row],"-",0) -> 13
B38: 28 | C38: Fv 890 Kongsfjordfjellet | D38: - | E38: - | F38: 25 | G38: 75 | H38: 6 | I38: 44 | J38: 18 | K38: 73 | L38: 40 | M38: 57 | N38: 37 | O38: 53 | P38: 25 | Q38: 18 | R38: 56 | S38: 29 | T38: 27 | U38: 27 | V38: 17 | W38: 23 | X38: 48 | Y38: 78 | Z38: 22 | AA38: 29 | AB38: 299 | AC38: 477 | AD38: 29.9 | AE38: 47.7 | AF38: 10 | AK38: =B38 -> 28 | AL38: =VLOOKUP($AK38,Hovedtabell,AK$7,FALSE) -> Fv 890 Kongsfjordfjellet | AM38: =_xlfn.XLOOKUP(AM$9,Tabell2[#Headers],Tabell2[#This Row],"-",0) -> - | AN38: =_xlfn.XLOOKUP(AN$9,Tabell2[#Headers],Tabell2[#This Row],"-",0) -> 25 | AO38: =_xlfn.XLOOKUP(AO$9,Tabell2[#Headers],Tabell2[#This Row],"-",0) -> 6 | AP38: =_xlfn.XLOOKUP(AP$9,Tabell2[#Headers],Tabell2[#This Row],"-",0) -> 18 | AQ38: =_xlfn.XLOOKUP(AQ$9,Tabell2[#Headers],Tabell2[#This Row],"-",0) -> 40 | AR38: =_xlfn.XLOOKUP(AR$9,Tabell2[#Headers],Tabell2[#This Row],"-",0) -> 37 | AS38: =_xlfn.XLOOKUP(AS$9,Tabell2[#Headers],Tabell2[#This Row],"-",0) -> 25 | AT38: =_xlfn.XLOOKUP(AT$9,Tabell2[#Headers],Tabell2[#This Row],"-",0) -> 56 | AU38: =_xlfn.XLOOKUP(AU$9,Tabell2[#Headers],Tabell2[#This Row],"-",0) -> 27 | AV38: =_xlfn.XLOOKUP(AV$9,Tabell2[#Headers],Tabell2[#This Row],"-",0) -> 17 | AW38: =_xlfn.XLOOKUP(AW$9,Tabell2[#Headers],Tabell2[#This Row],"-",0) -> 48 | AX38: =_xlfn.XLOOKUP(AX$9,Tabell2[#Headers],Tabell2[#This Row],"-",0) -> 22
B39: 29 | C39: Fv 98 Børselvfjellet (Børselv - Kunes) | D39: - | E39: - | F39: 4 | G39: 1 | H39: 1 | I39: 0 | J39: 5 | K39: 3 | L39: 5 | M39: 0 | N39: 4 | O39: 1 | P39: 7 | Q39: 0 | R39: 15 | S39: 11 | T39: 9 | U39: 0 | V39: 8 | W39: 0 | X39: 31 | Y39: 15 | Z39: 10 | AA39: 11 | AB39: 89 | AC39: 31 | AD39: =AB39/AF39 -> 8.9 | AE39: =AC39/AF39 -> 3.1 | AF39: 10 | AK39: 29 | AL39: Fv 98 Børselvfjellet (Børselv - Kunes) | AM39: =_xlfn.XLOOKUP(AM$9,Tabell2[#Headers],Tabell2[#This Row],"-",0) -> - | AN39: =_xlfn.XLOOKUP(AN$9,Tabell2[#Headers],Tabell2[#This Row],"-",0) -> 4 | AO39: =_xlfn.XLOOKUP(AO$9,Tabell2[#Headers],Tabell2[#This Row],"-",0) -> 1 | AP39: =_xlfn.XLOOKUP(AP$9,Tabell2[#Headers],Tabell2[#This Row],"-",0) -> 5 | AQ39: =_xlfn.XLOOKUP(AQ$9,Tabell2[#Headers],Tabell2[#This Row],"-",0) -> 5 | AR39: =_xlfn.XLOOKUP(AR$9,Tabell2[#Headers],Tabell2[#This Row],"-",0) -> 4 | AS39: =_xlfn.XLOOKUP(AS$9,Tabell2[#Headers],Tabell2[#This Row],"-",0) -> 7 | AT39: =_xlfn.XLOOKUP(AT$9,Tabell2[#Headers],Tabell2[#This Row],"-",0) -> 15 | AU39: =_xlfn.XLOOKUP(AU$9,Tabell2[#Headers],Tabell2[#This Row],"-",0) -> 9 | AV39: =_xlfn.XLOOKUP(AV$9,Tabell2[#Headers],Tabell2[#This Row],"-",0) -> 8 | AW39: =_xlfn.XLOOKUP(AW$9,Tabell2[#Headers],Tabell2[#This Row],"-",0) -> 31 | AX39: =_xlfn.XLOOKUP(AX$9,Tabell2[#Headers],Tabell2[#This Row],"-",0) -> 10
B40: 30 | C40: Fv 813 Beiarfjellet (Misvær - Storjord) | D40: - | E40: - | F40: 9 | G40: 17 | H40: 5 | I40: 8 | J40: 6 | K40: 2 | L40: 9 | M40: 13 | N40: 8 | O40: 16 | P40: 2 | Q40: 6 | R40: 12 | S40: 19 | T40: 7 | U40: 6 | V40: 5 | W40: 10 | X40: 24 | Y40: 43 | Z40: 3 | AA40: 2 | AB40: =SUM(T40,R40,P40,N40,L40,J40,H40,F40,D40,V40,X40) -> 87 | AC40: =SUM(U40,S40,Q40,O40,M40,K40,I40,G40,E40,W40,Y40) -> 140 | AD40: =AB40/AF40 -> 8.7 | AE40: =AC40/AF40 -> 14 | AF40: 10 | AK40: =B40 -> 30 | AL40: =VLOOKUP($AK40,Hovedtabell,AK$7,FALSE) -> Fv 813 Beiarfjellet (Misvær - Storjord) | AM40: =_xlfn.XLOOKUP(AM$9,Tabell2[#Headers],Tabell2[#This Row],"-",0) -> - | AN40: =_xlfn.XLOOKUP(AN$9,Tabell2[#Headers],Tabell2[#This Row],"-",0) -> 9 | AO40: =_xlfn.XLOOKUP(AO$9,Tabell2[#Headers],Tabell2[#This Row],"-",0) -> 5 | AP40: =_xlfn.XLOOKUP(AP$9,Tabell2[#Headers],Tabell2[#This Row],"-",0) -> 6 | AQ40: =_xlfn.XLOOKUP(AQ$9,Tabell2[#Headers],Tabell2[#This Row],"-",0) -> 9 | AR40: =_xlfn.XLOOKUP(AR$9,Tabell2[#Headers],Tabell2[#This Row],"-",0) -> 8 | AS40: =_xlfn.XLOOKUP(AS$9,Tabell2[#Headers],Tabell2[#This Row],"-",0) -> 2 | AT40: =_xlfn.XLOOKUP(AT$9,Tabell2[#Headers],Tabell2[#This Row],"-",0) -> 12 | AU40: =_xlfn.XLOOKUP(AU$9,Tabell2[#Headers],Tabell2[#This Row],"-",0) -> 7 | AV40: =_xlfn.XLOOKUP(AV$9,Tabell2[#Headers],Tabell2[#This Row],"-",0) -> 5 | AW40: =_xlfn.XLOOKUP(AW$9,Tabell2[#Headers],Tabell2[#This Row],"-",0) -> 24 | AX40: =_xlfn.XLOOKUP(AX$9,Tabell2[#Headers],Tabell2[#This Row],"-",0) -> 3
AK44: Kolonnekjøring
AL46: 2 | AM46: 4 | AN46: 6 | AO46: 8 | AP46: 10 | AQ46: 12 | AR46: 14 | AS46: 16 | AT46: 18 | AU46: 20 | AV46: 22 | AW46: 24
AM47: 2009 / 2010 | AN47: 2010 / 2011 | AO47: 2011 / 2012 | AP47: 2012 / 2013 | AQ47: 2013 / 2014 | AR47: 2014 / 2015 | AS47: 2015 / 2016 | AT47: 2016 / 2017 | AU47: 2017 / 2018 | AV47: 2018 / 2019 | AW47: 2019/2020 | AX47: 2020/2021
AM48: KK2009 / 2010 | AN48: KK2010 / 2011 | AO48: KK2011 / 2012 | AP48: KK2012 / 2013 | AQ48: KK2013 / 2014 | AR48: KK2014 / 2015 | AS48: KK2015 / 2016 | AT48: KK2016 / 2017 | AU48: KK2017 / 2018 | AV48: KK2018 / 2019 | AW48: KK2019 / 2020 | AX48: KK2020 / 2021
AM49: KK | AN49: KK | AO49: KK | AP49: KK | AQ49: KK | AR49: KK | AS49: KK | AT49: KK | AU49: KK | AV49: KK | AW49: KK | AX49: KK
AK50: 1 | AL50: =VLOOKUP($AK50,Hovedtabell,AL$46,FALSE) -> E6 Burfjord - Alta | AM50: =_xlfn.XLOOKUP(AM$48,Tabell2[#Headers],$B11:$AE11,"-",0) -> 0 | AN50: =_xlfn.XLOOKUP(AN$48,Tabell2[#Headers],$B11:$AE11,"-",0) -> 0 | AO50: =_xlfn.XLOOKUP(AO$48,Tabell2[#Headers],$B11:$AE11,"-",0) -> 0 | AP50: =_xlfn.XLOOKUP(AP$48,Tabell2[#Headers],$B11:$AE11,"-",0) -> 0 | AQ50: =_xlfn.XLOOKUP(AQ$48,Tabell2[#Headers],$B11:$AE11,"-",0) -> 0 | AR50: =_xlfn.XLOOKUP(AR$48,Tabell2[#Headers],$B11:$AE11,"-",0) -> 0 | AS50: =_xlfn.XLOOKUP(AS$48,Tabell2[#Headers],$B11:$AE11,"-",0) -> 0 | AT50: =_xlfn.XLOOKUP(AT$48,Tabell2[#Headers],$B11:$AE11,"-",0) -> 0 | AU50: =_xlfn.XLOOKUP(AU$48,Tabell2[#Headers],$B11:$AE11,"-",0) -> 0 | AV50: =_xlfn.XLOOKUP(AV$48,Tabell2[#Headers],$B11:$AE11,"-",0) -> 0 | AW50: =_xlfn.XLOOKUP(AW$48,Tabell2[#Headers],$B11:$AE11,"-",0) -> 0 | AX50: =_xlfn.XLOOKUP(AX$48,Tabell2[#Headers],$B11:$AE11,"-",0) -> 1
AK51: 2 | AL51: E6 Hatter | AM51: =_xlfn.XLOOKUP(AM$48,Tabell2[#Headers],$B12:$AE12,"-",0) -> 2 | AN51: =_xlfn.XLOOKUP(AN$48,Tabell2[#Headers],$B12:$AE12,"-",0) -> 10 | AO51: =_xlfn.XLOOKUP(AO$48,Tabell2[#Headers],$B12:$AE12,"-",0) -> 2 | AP51: =_xlfn.XLOOKUP(AP$48,Tabell2[#Headers],$B12:$AE12,"-",0) -> 10 | AQ51: =_xlfn.XLOOKUP(AQ$48,Tabell2[#Headers],$B12:$AE12,"-",0) -> 10 | AR51: =_xlfn.XLOOKUP(AR$48,Tabell2[#Headers],$B12:$AE12,"-",0) -> 10 | AS51: =_xlfn.XLOOKUP(AS$48,Tabell2[#Headers],$B12:$AE12,"-",0) -> 6 | AT51: =_xlfn.XLOOKUP(AT$48,Tabell2[#Headers],$B12:$AE12,"-",0) -> 19 | AU51: =_xlfn.XLOOKUP(AU$48,Tabell2[#Headers],$B12:$AE12,"-",0) -> 4 | AV51: =_xlfn.XLOOKUP(AV$48,Tabell2[#Headers],$B12:$AE12,"-",0) -> 9 | AW51: =_xlfn.XLOOKUP(AW$48,Tabell2[#Headers],$B12:$AE12,"-",0) -> 26 | AX51: =_xlfn.XLOOKUP(AX$48,Tabell2[#Headers],$B12:$AE12,"-",0) -> 7
AK52: 3 | AL52: E6 Kråkmofjellet | AM52: =_xlfn.XLOOKUP(AM$48,Tabell2[#Headers],$B13:$AE13,"-",0) -> 0 | AN52: =_xlfn.XLOOKUP(AN$48,Tabell2[#Headers],$B13:$AE13,"-",0) -> 0 | AO52: =_xlfn.XLOOKUP(AO$48,Tabell2[#Headers],$B13:$AE13,"-",0) -> 0 | AP52: =_xlfn.XLOOKUP(AP$48,Tabell2[#Headers],$B13:$AE13,"-",0) -> 0 | AQ52: =_xlfn.XLOOKUP(AQ$48,Tabell2[#Headers],$B13:$AE13,"-",0) -> 1 | AR52: =_xlfn.XLOOKUP(AR$48,Tabell2[#Headers],$B13:$AE13,"-",0) -> 0 | AS52: =_xlfn.XLOOKUP(AS$48,Tabell2[#Headers],$B13:$AE13,"-",0) -> 0 | AT52: =_xlfn.XLOOKUP(AT$48,Tabell2[#Headers],$B13:$AE13,"-",0) -> 0 | AU52: =_xlfn.XLOOKUP(AU$48,Tabell2[#Headers],$B13:$AE13,"-",0) -> 0 | AV52: =_xlfn.XLOOKUP(AV$48,Tabell2[#Headers],$B13:$AE13,"-",0) -> 0 | AW52: =_xlfn.XLOOKUP(AW$48,Tabell2[#Headers],$B13:$AE13,"-",0) -> 4 | AX52: =_xlfn.XLOOKUP(AX$48,Tabell2[#Headers],$B13:$AE13,"-",0) -> 0
AK53: 4 | AL53: E6 Kvænangsfjellet | AM53: =_xlfn.XLOOKUP(AM$48,Tabell2[#Headers],$B14:$AE14,"-",0) -> 4 | AN53: =_xlfn.XLOOKUP(AN$48,Tabell2[#Headers],$B14:$AE14,"-",0) -> 8 | AO53: =_xlfn.XLOOKUP(AO$48,Tabell2[#Headers],$B14:$AE14,"-",0) -> 1 | AP53: =_xlfn.XLOOKUP(AP$48,Tabell2[#Headers],$B14:$AE14,"-",0) -> 18 | AQ53: =_xlfn.XLOOKUP(AQ$48,Tabell2[#Headers],$B14:$AE14,"-",0) -> 16 | AR53: =_xlfn.XLOOKUP(AR$48,Tabell2[#Headers],$B14:$AE14,"-",0) -> 11 | AS53: =_xlfn.XLOOKUP(AS$48,Tabell2[#Headers],$B14:$AE14,"-",0) -> 10 | AT53: =_xlfn.XLOOKUP(AT$48,Tabell2[#Headers],$B14:$AE14,"-",0) -> 19 | AU53: =_xlfn.XLOOKUP(AU$48,Tabell2[#Headers],$B14:$AE14,"-",0) -> 24 | AV53: =_xlfn.XLOOKUP(AV$48,Tabell2[#Headers],$B14:$AE14,"-",0) -> 19 | AW53: =_xlfn.XLOOKUP(AW$48,Tabell2[#Headers],$B14:$AE14,"-",0) -> 59 | AX53: =_xlfn.XLOOKUP(AX$48,Tabell2[#Headers],$B14:$AE14,"-",0) -> 24
AK54: 5 | AL54: E6 Saltfjellet | AM54: =_xlfn.XLOOKUP(AM$48,Tabell2[#Headers],$B15:$AE15,"-",0) -> 6 | AN54: =_xlfn.XLOOKUP(AN$48,Tabell2[#Headers],$B15:$AE15,"-",0) -> 28 | AO54: =_xlfn.XLOOKUP(AO$48,Tabell2[#Headers],$B15:$AE15,"-",0) -> 30 | AP54: =_xlfn.XLOOKUP(AP$48,Tabell2[#Headers],$B15:$AE15,"-",0) -> 7 | AQ54: =_xlfn.XLOOKUP(AQ$48,Tabell2[#Headers],$B15:$AE15,"-",0) -> 38 | AR54: =_xlfn.XLOOKUP(AR$48,Tabell2[#Headers],$B15:$AE15,"-",0) -> 31 | AS54: =_xlfn.XLOOKUP(AS$48,Tabell2[#Headers],$B15:$AE15,"-",0) -> 17 | AT54: =_xlfn.XLOOKUP(AT$48,Tabell2[#Headers],$B15:$AE15,"-",0) -> 44 | AU54: =_xlfn.XLOOKUP(AU$48,Tabell2[#Headers],$B15:$AE15,"-",0) -> 11 | AV54: =_xlfn.XLOOKUP(AV$48,Tabell2[#Headers],$B15:$AE15,"-",0) -> 17 | AW54: =_xlfn.XLOOKUP(AW$48,Tabell2[#Headers],$B15:$AE15,"-",0) -> 78 | AX54: =_xlfn.XLOOKUP(AX$48,Tabell2[#Headers],$B15:$AE15,"-",0) -> 22
AK55: 6 | AL55: E6 Sennalandet | AM55: =_xlfn.XLOOKUP(AM$48,Tabell2[#Headers],$B16:$AE16,"-",0) -> 4 | AN55: =_xlfn.XLOOKUP(AN$48,Tabell2[#Headers],$B16:$AE16,"-",0) -> 34 | AO55: =_xlfn.XLOOKUP(AO$48,Tabell2[#Headers],$B16:$AE16,"-",0) -> 19 | AP55: =_xlfn.XLOOKUP(AP$48,Tabell2[#Headers],$B16:$AE16,"-",0) -> 31 | AQ55: =_xlfn.XLOOKUP(AQ$48,Tabell2[#Headers],$B16:$AE16,"-",0) -> 37 | AR55: =_xlfn.XLOOKUP(AR$48,Tabell2[#Headers],$B16:$AE16,"-",0) -> 20 | AS55: =_xlfn.XLOOKUP(AS$48,Tabell2[#Headers],$B16:$AE16,"-",0) -> 13 | AT55: =_xlfn.XLOOKUP(AT$48,Tabell2[#Headers],$B16:$AE16,"-",0) -> 57 | AU55: =_xlfn.XLOOKUP(AU$48,Tabell2[#Headers],$B16:$AE16,"-",0) -> 26 | AV55: =_xlfn.XLOOKUP(AV$48,Tabell2[#Headers],$B16:$AE16,"-",0) -> 8 | AW55: =_xlfn.XLOOKUP(AW$48,Tabell2[#Headers],$B16:$AE16,"-",0) -> 104 | AX55: =_xlfn.XLOOKUP(AX$48,Tabell2[#Headers],$B16:$AE16,"-",0) -> 17
AK56: 7 | AL56: E6 Ulvsvågskaret | AM56: =_xlfn.XLOOKUP(AM$48,Tabell2[#Headers],$B17:$AE17,"-",0) -> 0 | AN56: =_xlfn.XLOOKUP(AN$48,Tabell2[#Headers],$B17:$AE17,"-",0) -> 4 | AO56: =_xlfn.XLOOKUP(AO$48,Tabell2[#Headers],$B17:$AE17,"-",0) -> 0 | AP56: =_xlfn.XLOOKUP(AP$48,Tabell2[#Headers],$B17:$AE17,"-",0) -> 0 | AQ56: =_xlfn.XLOOKUP(AQ$48,Tabell2[#Headers],$B17:$AE17,"-",0) -> 0 | AR56: =_xlfn.XLOOKUP(AR$48,Tabell2[#Headers],$B17:$AE17,"-",0) -> 0 | AS56: =_xlfn.XLOOKUP(AS$48,Tabell2[#Headers],$B17:$AE17,"-",0) -> 0 | AT56: =_xlfn.XLOOKUP(AT$48,Tabell2[#Headers],$B17:$AE17,"-",0) -> 0 | AU56: =_xlfn.XLOOKUP(AU$48,Tabell2[#Headers],$B17:$AE17,"-",0) -> 0 | AV56: =_xlfn.XLOOKUP(AV$48,Tabell2[#Headers],$B17:$AE17,"-",0) -> 0 | AW56: =_xlfn.XLOOKUP(AW$48,Tabell2[#Headers],$B17:$AE17,"-",0) -> 0 | AX56: =_xlfn.XLOOKUP(AX$48,Tabell2[#Headers],$B17:$AE17,"-",0) -> 0
AK57: 8 | AL57: E10 Bjørnfjell | AM57: =_xlfn.XLOOKUP(AM$48,Tabell2[#Headers],$B18:$AE18,"-",0) -> 11 | AN57: =_xlfn.XLOOKUP(AN$48,Tabell2[#Headers],$B18:$AE18,"-",0) -> 30 | AO57: =_xlfn.XLOOKUP(AO$48,Tabell2[#Headers],$B18:$AE18,"-",0) -> 8 | AP57: =_xlfn.XLOOKUP(AP$48,Tabell2[#Headers],$B18:$AE18,"-",0) -> 21 | AQ57: =_xlfn.XLOOKUP(AQ$48,Tabell2[#Headers],$B18:$AE18,"-",0) -> 43 | AR57: =_xlfn.XLOOKUP(AR$48,Tabell2[#Headers],$B18:$AE18,"-",0) -> 18 | AS57: =_xlfn.XLOOKUP(AS$48,Tabell2[#Headers],$B18:$AE18,"-",0) -> 18 | AT57: =_xlfn.XLOOKUP(AT$48,Tabell2[#Headers],$B18:$AE18,"-",0) -> 28 | AU57: =_xlfn.XLOOKUP(AU$48,Tabell2[#Headers],$B18:$AE18,"-",0) -> 8 | AV57: =_xlfn.XLOOKUP(AV$48,Tabell2[#Headers],$B18:$AE18,"-",0) -> 41 | AW57: =_xlfn.XLOOKUP(AW$48,Tabell2[#Headers],$B18:$AE18,"-",0) -> 63 | AX57: =_xlfn.XLOOKUP(AX$48,Tabell2[#Headers],$B18:$AE18,"-",0) -> 19
AK58: 9 | AL58: E12 Umbukta | AM58: =_xlfn.XLOOKUP(AM$48,Tabell2[#Headers],$B19:$AE19,"-",0) -> 1 | AN58: =_xlfn.XLOOKUP(AN$48,Tabell2[#Headers],$B19:$AE19,"-",0) -> 2 | AO58: =_xlfn.XLOOKUP(AO$48,Tabell2[#Headers],$B19:$AE19,"-",0) -> 16 | AP58: =_xlfn.XLOOKUP(AP$48,Tabell2[#Headers],$B19:$AE19,"-",0) -> 3 | AQ58: =_xlfn.XLOOKUP(AQ$48,Tabell2[#Headers],$B19:$AE19,"-",0) -> 19 | AR58: =_xlfn.XLOOKUP(AR$48,Tabell2[#Headers],$B19:$AE19,"-",0) -> 8 | AS58: =_xlfn.XLOOKUP(AS$48,Tabell2[#Headers],$B19:$AE19,"-",0) -> 2 | AT58: =_xlfn.XLOOKUP(AT$48,Tabell2[#Headers],$B19:$AE19,"-",0) -> 4 | AU58: =_xlfn.XLOOKUP(AU$48,Tabell2[#Headers],$B19:$AE19,"-",0) -> 3 | AV58: =_xlfn.XLOOKUP(AV$48,Tabell2[#Headers],$B19:$AE19,"-",0) -> 4 | AW58: =_xlfn.XLOOKUP(AW$48,Tabell2[#Headers],$B19:$AE19,"-",0) -> 16 | AX58: =_xlfn.XLOOKUP(AX$48,Tabell2[#Headers],$B19:$AE19,"-",0) -> 1
AK59: 10 | AL59: E69 Hønsa - Repvåg | AM59: =_xlfn.XLOOKUP(AM$48,Tabell2[#Headers],$B20:$AE20,"-",0) -> 12 | AN59: =_xlfn.XLOOKUP(AN$48,Tabell2[#Headers],$B20:$AE20,"-",0) -> 16 | AO59: =_xlfn.XLOOKUP(AO$48,Tabell2[#Headers],$B20:$AE20,"-",0) -> 5 | AP59: =_xlfn.XLOOKUP(AP$48,Tabell2[#Headers],$B20:$AE20,"-",0) -> 3 | AQ59: =_xlfn.XLOOKUP(AQ$48,Tabell2[#Headers],$B20:$AE20,"-",0) -> 3 | AR59: =_xlfn.XLOOKUP(AR$48,Tabell2[#Headers],$B20:$AE20,"-",0) -> 12 | AS59: =_xlfn.XLOOKUP(AS$48,Tabell2[#Headers],$B20:$AE20,"-",0) -> 10 | AT59: =_xlfn.XLOOKUP(AT$48,Tabell2[#Headers],$B20:$AE20,"-",0) -> 20 | AU59: =_xlfn.XLOOKUP(AU$48,Tabell2[#Headers],$B20:$AE20,"-",0) -> 3 | AV59: =_xlfn.XLOOKUP(AV$48,Tabell2[#Headers],$B20:$AE20,"-",0) -> 15 | AW59: =_xlfn.XLOOKUP(AW$48,Tabell2[#Headers],$B20:$AE20,"-",0) -> 58 | AX59: =_xlfn.XLOOKUP(AX$48,Tabell2[#Headers],$B20:$AE20,"-",0) -> 14
AK60: 11 | AL60: =VLOOKUP($AK60,Hovedtabell,AL$46,FALSE) -> E69 Nordkapptunnelen - Honningsvåg | AM60: =_xlfn.XLOOKUP(AM$48,Tabell2[#Headers],$B21:$AE21,"-",0) -> 0 | AN60: =_xlfn.XLOOKUP(AN$48,Tabell2[#Headers],$B21:$AE21,"-",0) -> 1 | AO60: =_xlfn.XLOOKUP(AO$48,Tabell2[#Headers],$B21:$AE21,"-",0) -> 1 | AP60: =_xlfn.XLOOKUP(AP$48,Tabell2[#Headers],$B21:$AE21,"-",0) -> 1 | AQ60: =_xlfn.XLOOKUP(AQ$48,Tabell2[#Headers],$B21:$AE21,"-",0) -> 0 | AR60: =_xlfn.XLOOKUP(AR$48,Tabell2[#Headers],$B21:$AE21,"-",0) -> 3 | AS60: =_xlfn.XLOOKUP(AS$48,Tabell2[#Headers],$B21:$AE21,"-",0) -> 1 | AT60: =_xlfn.XLOOKUP(AT$48,Tabell2[#Headers],$B21:$AE21,"-",0) -> 0 | AU60: =_xlfn.XLOOKUP(AU$48,Tabell2[#Headers],$B21:$AE21,"-",0) -> 3 | AV60: =_xlfn.XLOOKUP(AV$48,Tabell2[#Headers],$B21:$AE21,"-",0) -> 1 | AW60: =_xlfn.XLOOKUP(AW$48,Tabell2[#Headers],$B21:$AE21,"-",0) -> 6 | AX60: =_xlfn.XLOOKUP(AX$48,Tabell2[#Headers],$B21:$AE21,"-",0) -> 3
AK61: 12 | AL61: E69 Olderfjord - Honningsvåg | AM61: =_xlfn.XLOOKUP(AM$48,Tabell2[#Headers],$B22:$AE22,"-",0) -> 22 | AN61: =_xlfn.XLOOKUP(AN$48,Tabell2[#Headers],$B22:$AE22,"-",0) -> 33 | AO61: =_xlfn.XLOOKUP(AO$48,Tabell2[#Headers],$B22:$AE22,"-",0) -> 10 | AP61: =_xlfn.XLOOKUP(AP$48,Tabell2[#Headers],$B22:$AE22,"-",0) -> 7 | AQ61: =_xlfn.XLOOKUP(AQ$48,Tabell2[#Headers],$B22:$AE22,"-",0) -> 7 | AR61: =_xlfn.XLOOKUP(AR$48,Tabell2[#Headers],$B22:$AE22,"-",0) -> 24 | AS61: =_xlfn.XLOOKUP(AS$48,Tabell2[#Headers],$B22:$AE22,"-",0) -> 24 | AT61: =_xlfn.XLOOKUP(AT$48,Tabell2[#Headers],$B22:$AE22,"-",0) -> 30 | AU61: =_xlfn.XLOOKUP(AU$48,Tabell2[#Headers],$B22:$AE22,"-",0) -> 15 | AV61: =_xlfn.XLOOKUP(AV$48,Tabell2[#Headers],$B22:$AE22,"-",0) -> 17 | AW61: =_xlfn.XLOOKUP(AW$48,Tabell2[#Headers],$B22:$AE22,"-",0) -> 71 | AX61: =_xlfn.XLOOKUP(AX$48,Tabell2[#Headers],$B22:$AE22,"-",0) -> 18
AK62: 13 | AL62: E69 Olderfjord - Hønsa | AM62: =_xlfn.XLOOKUP(AM$48,Tabell2[#Headers],$B23:$AE23,"-",0) -> 0 | AN62: =_xlfn.XLOOKUP(AN$48,Tabell2[#Headers],$B23:$AE23,"-",0) -> 0 | AO62: =_xlfn.XLOOKUP(AO$48,Tabell2[#Headers],$B23:$AE23,"-",0) -> 0 | AP62: =_xlfn.XLOOKUP(AP$48,Tabell2[#Headers],$B23:$AE23,"-",0) -> 0 | AQ62: =_xlfn.XLOOKUP(AQ$48,Tabell2[#Headers],$B23:$AE23,"-",0) -> 0 | AR62: =_xlfn.XLOOKUP(AR$48,Tabell2[#Headers],$B23:$AE23,"-",0) -> 0 | AS62: =_xlfn.XLOOKUP(AS$48,Tabell2[#Headers],$B23:$AE23,"-",0) -> 0 | AT62: =_xlfn.XLOOKUP(AT$48,Tabell2[#Headers],$B23:$AE23,"-",0) -> 0 | AU62: =_xlfn.XLOOKUP(AU$48,Tabell2[#Headers],$B23:$AE23,"-",0) -> 0 | AV62: =_xlfn.XLOOKUP(AV$48,Tabell2[#Headers],$B23:$AE23,"-",0) -> 0 | AW62: =_xlfn.XLOOKUP(AW$48,Tabell2[#Headers],$B23:$AE23,"-",0) -> 0 | AX62: =_xlfn.XLOOKUP(AX$48,Tabell2[#Headers],$B23:$AE23,"-",0) -> 0
AK63: 14 | AL63: E69 Repvåg - Nordkapptunnelen | AM63: =_xlfn.XLOOKUP(AM$48,Tabell2[#Headers],$B24:$AE24,"-",0) -> 10 | AN63: =_xlfn.XLOOKUP(AN$48,Tabell2[#Headers],$B24:$AE24,"-",0) -> 16 | AO63: =_xlfn.XLOOKUP(AO$48,Tabell2[#Headers],$B24:$AE24,"-",0) -> 6 | AP63: =_xlfn.XLOOKUP(AP$48,Tabell2[#Headers],$B24:$AE24,"-",0) -> 5 | AQ63: =_xlfn.XLOOKUP(AQ$48,Tabell2[#Headers],$B24:$AE24,"-",0) -> 5 | AR63: =_xlfn.XLOOKUP(AR$48,Tabell2[#Headers],$B24:$AE24,"-",0) -> 14 | AS63: =_xlfn.XLOOKUP(AS$48,Tabell2[#Headers],$B24:$AE24,"-",0) -> 13 | AT63: =_xlfn.XLOOKUP(AT$48,Tabell2[#Headers],$B24:$AE24,"-",0) -> 26 | AU63: =_xlfn.XLOOKUP(AU$48,Tabell2[#Headers],$B24:$AE24,"-",0) -> 15 | AV63: =_xlfn.XLOOKUP(AV$48,Tabell2[#Headers],$B24:$AE24,"-",0) -> 17 | AW63: =_xlfn.XLOOKUP(AW$48,Tabell2[#Headers],$B24:$AE24,"-",0) -> 69 | AX63: =_xlfn.XLOOKUP(AX$48,Tabell2[#Headers],$B24:$AE24,"-",0) -> 18
AK64: 15 | AL64: E69 Skarsvåg - Nordkapp | AM64: =_xlfn.XLOOKUP(AM$48,Tabell2[#Headers],$B25:$AE25,"-",0) -> 5 | AN64: =_xlfn.XLOOKUP(AN$48,Tabell2[#Headers],$B25:$AE25,"-",0) -> 7 | AO64: =_xlfn.XLOOKUP(AO$48,Tabell2[#Headers],$B25:$AE25,"-",0) -> 19 | AP64: =_xlfn.XLOOKUP(AP$48,Tabell2[#Headers],$B25:$AE25,"-",0) -> 22 | AQ64: =_xlfn.XLOOKUP(AQ$48,Tabell2[#Headers],$B25:$AE25,"-",0) -> 24 | AR64: =_xlfn.XLOOKUP(AR$48,Tabell2[#Headers],$B25:$AE25,"-",0) -> 20 | AS64: =_xlfn.XLOOKUP(AS$48,Tabell2[#Headers],$B25:$AE25,"-",0) -> 11 | AT64: =_xlfn.XLOOKUP(AT$48,Tabell2[#Headers],$B25:$AE25,"-",0) -> 36 | AU64: =_xlfn.XLOOKUP(AU$48,Tabell2[#Headers],$B25:$AE25,"-",0) -> 40 | AV64: =_xlfn.XLOOKUP(AV$48,Tabell2[#Headers],$B25:$AE25,"-",0) -> 31 | AW64: =_xlfn.XLOOKUP(AW$48,Tabell2[#Headers],$B25:$AE25,"-",0) -> 38 | AX64: =_xlfn.XLOOKUP(AX$48,Tabell2[#Headers],$B25:$AE25,"-",0) -> 37
AK65: 16 | AL65: E69 Skipsfjordhøgda - Skarsvåg | AM65: =_xlfn.XLOOKUP(AM$48,Tabell2[#Headers],$B26:$AE26,"-",0) -> 19 | AN65: =_xlfn.XLOOKUP(AN$48,Tabell2[#Headers],$B26:$AE26,"-",0) -> 52 | AO65: =_xlfn.XLOOKUP(AO$48,Tabell2[#Headers],$B26:$AE26,"-",0) -> 12 | AP65: =_xlfn.XLOOKUP(AP$48,Tabell2[#Headers],$B26:$AE26,"-",0) -> 31 | AQ65: =_xlfn.XLOOKUP(AQ$48,Tabell2[#Headers],$B26:$AE26,"-",0) -> 23 | AR65: =_xlfn.XLOOKUP(AR$48,Tabell2[#Headers],$B26:$AE26,"-",0) -> 27 | AS65: =_xlfn.XLOOKUP(AS$48,Tabell2[#Headers],$B26:$AE26,"-",0) -> 7 | AT65: =_xlfn.XLOOKUP(AT$48,Tabell2[#Headers],$B26:$AE26,"-",0) -> 12 | AU65: =_xlfn.XLOOKUP(AU$48,Tabell2[#Headers],$B26:$AE26,"-",0) -> 10 | AV65: =_xlfn.XLOOKUP(AV$48,Tabell2[#Headers],$B26:$AE26,"-",0) -> 20 | AW65: =_xlfn.XLOOKUP(AW$48,Tabell2[#Headers],$B26:$AE26,"-",0) -> 61 | AX65: =_xlfn.XLOOKUP(AX$48,Tabell2[#Headers],$B26:$AE26,"-",0) -> 25
AK66: 17 | AL66: Rv 73 Krutfjellet | AM66: =_xlfn.XLOOKUP(AM$48,Tabell2[#Headers],$B27:$AE27,"-",0) -> 0 | AN66: =_xlfn.XLOOKUP(AN$48,Tabell2[#Headers],$B27:$AE27,"-",0) -> 0 | AO66: =_xlfn.XLOOKUP(AO$48,Tabell2[#Headers],$B27:$AE27,"-",0) -> 2 | AP66: =_xlfn.XLOOKUP(AP$48,Tabell2[#Headers],$B27:$AE27,"-",0) -> 0 | AQ66: =_xlfn.XLOOKUP(AQ$48,Tabell2[#Headers],$B27:$AE27,"-",0) -> 0 | AR66: =_xlfn.XLOOKUP(AR$48,Tabell2[#Headers],$B27:$AE27,"-",0) -> 1 | AS66: =_xlfn.XLOOKUP(AS$48,Tabell2[#Headers],$B27:$AE27,"-",0) -> 0 | AT66: =_xlfn.XLOOKUP(AT$48,Tabell2[#Headers],$B27:$AE27,"-",0) -> 4 | AU66: =_xlfn.XLOOKUP(AU$48,Tabell2[#Headers],$B27:$AE27,"-",0) -> 1 | AV66: =_xlfn.XLOOKUP(AV$48,Tabell2[#Headers],$B27:$AE27,"-",0) -> 2 | AW66: =_xlfn.XLOOKUP(AW$48,Tabell2[#Headers],$B27:$AE27,"-",0) -> 1 | AX66: =_xlfn.XLOOKUP(AX$48,Tabell2[#Headers],$B27:$AE27,"-",0) -> 0
AK67: 18 | AL67: Rv 77 Graddis | AM67: =_xlfn.XLOOKUP(AM$48,Tabell2[#Headers],$B28:$AE28,"-",0) -> 0 | AN67: =_xlfn.XLOOKUP(AN$48,Tabell2[#Headers],$B28:$AE28,"-",0) -> 0 | AO67: =_xlfn.XLOOKUP(AO$48,Tabell2[#Headers],$B28:$AE28,"-",0) -> 0 | AP67: =_xlfn.XLOOKUP(AP$48,Tabell2[#Headers],$B28:$AE28,"-",0) -> 0 | AQ67: =_xlfn.XLOOKUP(AQ$48,Tabell2[#Headers],$B28:$AE28,"-",0) -> 0 | AR67: =_xlfn.XLOOKUP(AR$48,Tabell2[#Headers],$B28:$AE28,"-",0) -> 1 | AS67: =_xlfn.XLOOKUP(AS$48,Tabell2[#Headers],$B28:$AE28,"-",0) -> 0 | AT67: =_xlfn.XLOOKUP(AT$48,Tabell2[#Headers],$B28:$AE28,"-",0) -> 0 | AU67: =_xlfn.XLOOKUP(AU$48,Tabell2[#Headers],$B28:$AE28,"-",0) -> 0 | AV67: =_xlfn.XLOOKUP(AV$48,Tabell2[#Headers],$B28:$AE28,"-",0) -> 0 | AW67: =_xlfn.XLOOKUP(AW$48,Tabell2[#Headers],$B28:$AE28,"-",0) -> 1 | AX67: =_xlfn.XLOOKUP(AX$48,Tabell2[#Headers],$B28:$AE28,"-",0) -> 0
AK68: 19 | AL68: Rv 92 Kautokeino - Karasjok | AM68: =_xlfn.XLOOKUP(AM$48,Tabell2[#Headers],$B29:$AE29,"-",0) -> 0 | AN68: =_xlfn.XLOOKUP(AN$48,Tabell2[#Headers],$B29:$AE29,"-",0) -> 0 | AO68: =_xlfn.XLOOKUP(AO$48,Tabell2[#Headers],$B29:$AE29,"-",0) -> 0 | AP68: =_xlfn.XLOOKUP(AP$48,Tabell2[#Headers],$B29:$AE29,"-",0) -> 0 | AQ68: =_xlfn.XLOOKUP(AQ$48,Tabell2[#Headers],$B29:$AE29,"-",0) -> 0 | AR68: =_xlfn.XLOOKUP(AR$48,Tabell2[#Headers],$B29:$AE29,"-",0) -> 0 | AS68: =_xlfn.XLOOKUP(AS$48,Tabell2[#Headers],$B29:$AE29,"-",0) -> 1 | AT68: =_xlfn.XLOOKUP(AT$48,Tabell2[#Headers],$B29:$AE29,"-",0) -> 0 | AU68: =_xlfn.XLOOKUP(AU$48,Tabell2[#Headers],$B29:$AE29,"-",0) -> 0 | AV68: =_xlfn.XLOOKUP(AV$48,Tabell2[#Headers],$B29:$AE29,"-",0) -> 0 | AW68: =_xlfn.XLOOKUP(AW$48,Tabell2[#Headers],$B29:$AE29,"-",0) -> 0 | AX68: =_xlfn.XLOOKUP(AX$48,Tabell2[#Headers],$B29:$AE29,"-",0) -> 0
AK69: 20 | AL69: E45 Kautokeino - Alta | AM69: =_xlfn.XLOOKUP(AM$48,Tabell2[#Headers],$B30:$AE30,"-",0) -> 0 | AN69: =_xlfn.XLOOKUP(AN$48,Tabell2[#Headers],$B30:$AE30,"-",0) -> 0 | AO69: =_xlfn.XLOOKUP(AO$48,Tabell2[#Headers],$B30:$AE30,"-",0) -> 0 | AP69: =_xlfn.XLOOKUP(AP$48,Tabell2[#Headers],$B30:$AE30,"-",0) -> 0 | AQ69: =_xlfn.XLOOKUP(AQ$48,Tabell2[#Headers],$B30:$AE30,"-",0) -> 0 | AR69: =_xlfn.XLOOKUP(AR$48,Tabell2[#Headers],$B30:$AE30,"-",0) -> 0 | AS69: =_xlfn.XLOOKUP(AS$48,Tabell2[#Headers],$B30:$AE30,"-",0) -> 1 | AT69: =_xlfn.XLOOKUP(AT$48,Tabell2[#Headers],$B30:$AE30,"-",0) -> 2 | AU69: =_xlfn.XLOOKUP(AU$48,Tabell2[#Headers],$B30:$AE30,"-",0) -> 0 | AV69: =_xlfn.XLOOKUP(AV$48,Tabell2[#Headers],$B30:$AE30,"-",0) -> 0 | AW69: =_xlfn.XLOOKUP(AW$48,Tabell2[#Headers],$B30:$AE30,"-",0) -> 0 | AX69: =_xlfn.XLOOKUP(AX$48,Tabell2[#Headers],$B30:$AE30,"-",0) -> 0
AK70: 21 | AL70: Rv 94 Kvalsund - Hammerfest | AM70: =_xlfn.XLOOKUP(AM$48,Tabell2[#Headers],$B31:$AE31,"-",0) -> 3 | AN70: =_xlfn.XLOOKUP(AN$48,Tabell2[#Headers],$B31:$AE31,"-",0) -> 13 | AO70: =_xlfn.XLOOKUP(AO$48,Tabell2[#Headers],$B31:$AE31,"-",0) -> 4 | AP70: =_xlfn.XLOOKUP(AP$48,Tabell2[#Headers],$B31:$AE31,"-",0) -> 6 | AQ70: =_xlfn.XLOOKUP(AQ$48,Tabell2[#Headers],$B31:$AE31,"-",0) -> 6 | AR70: =_xlfn.XLOOKUP(AR$48,Tabell2[#Headers],$B31:$AE31,"-",0) -> 3 | AS70: =_xlfn.XLOOKUP(AS$48,Tabell2[#Headers],$B31:$AE31,"-",0) -> 6 | AT70: =_xlfn.XLOOKUP(AT$48,Tabell2[#Headers],$B31:$AE31,"-",0) -> 4 | AU70: =_xlfn.XLOOKUP(AU$48,Tabell2[#Headers],$B31:$AE31,"-",0) -> 1 | AV70: =_xlfn.XLOOKUP(AV$48,Tabell2[#Headers],$B31:$AE31,"-",0) -> 3 | AW70: =_xlfn.XLOOKUP(AW$48,Tabell2[#Headers],$B31:$AE31,"-",0) -> 17 | AX70: =_xlfn.XLOOKUP(AX$48,Tabell2[#Headers],$B31:$AE31,"-",0) -> 2
AK71: 22 | AL71: Fv 8038 Gjesværkrysset - Gjesvær | AM71: =_xlfn.XLOOKUP(AM$48,Tabell2[#Headers],$B32:$AE32,"-",0) -> 16 | AN71: =_xlfn.XLOOKUP(AN$48,Tabell2[#Headers],$B32:$AE32,"-",0) -> 52 | AO71: =_xlfn.XLOOKUP(AO$48,Tabell2[#Headers],$B32:$AE32,"-",0) -> 11 | AP71: =_xlfn.XLOOKUP(AP$48,Tabell2[#Headers],$B32:$AE32,"-",0) -> 31 | AQ71: =_xlfn.XLOOKUP(AQ$48,Tabell2[#Headers],$B32:$AE32,"-",0) -> 22 | AR71: =_xlfn.XLOOKUP(AR$48,Tabell2[#Headers],$B32:$AE32,"-",0) -> 29 | AS71: =_xlfn.XLOOKUP(AS$48,Tabell2[#Headers],$B32:$AE32,"-",0) -> 7 | AT71: =_xlfn.XLOOKUP(AT$48,Tabell2[#Headers],$B32:$AE32,"-",0) -> 14 | AU71: =_xlfn.XLOOKUP(AU$48,Tabell2[#Headers],$B32:$AE32,"-",0) -> 10 | AV71: =_xlfn.XLOOKUP(AV$48,Tabell2[#Headers],$B32:$AE32,"-",0) -> 18 | AW71: =_xlfn.XLOOKUP(AW$48,Tabell2[#Headers],$B32:$AE32,"-",0) -> 55 | AX71: =_xlfn.XLOOKUP(AX$48,Tabell2[#Headers],$B32:$AE32,"-",0) -> 22
AK72: 23 | AL72: Fv 889 Smørfjord - Havøysund | AM72: =_xlfn.XLOOKUP(AM$48,Tabell2[#Headers],$B33:$AE33,"-",0) -> - | AN72: =_xlfn.XLOOKUP(AN$48,Tabell2[#Headers],$B33:$AE33,"-",0) -> 54 | AO72: =_xlfn.XLOOKUP(AO$48,Tabell2[#Headers],$B33:$AE33,"-",0) -> 6 | AP72: =_xlfn.XLOOKUP(AP$48,Tabell2[#Headers],$B33:$AE33,"-",0) -> 38 | AQ72: =_xlfn.XLOOKUP(AQ$48,Tabell2[#Headers],$B33:$AE33,"-",0) -> 39 | AR72: =_xlfn.XLOOKUP(AR$48,Tabell2[#Headers],$B33:$AE33,"-",0) -> 26 | AS72: =_xlfn.XLOOKUP(AS$48,Tabell2[#Headers],$B33:$AE33,"-",0) -> 44 | AT72: =_xlfn.XLOOKUP(AT$48,Tabell2[#Headers],$B33:$AE33,"-",0) -> 40 | AU72: =_xlfn.XLOOKUP(AU$48,Tabell2[#Headers],$B33:$AE33,"-",0) -> 33 | AV72: =_xlfn.XLOOKUP(AV$48,Tabell2[#Headers],$B33:$AE33,"-",0) -> 41 | AW72: =_xlfn.XLOOKUP(AW$48,Tabell2[#Headers],$B33:$AE33,"-",0) -> 69 | AX72: =_xlfn.XLOOKUP(AX$48,Tabell2[#Headers],$B33:$AE33,"-",0) -> 16
AK73: 24 | AL73: Fv 891 Båtsfjordfjellet | AM73: =_xlfn.XLOOKUP(AM$48,Tabell2[#Headers],$B34:$AE34,"-",0) -> - | AN73: =_xlfn.XLOOKUP(AN$48,Tabell2[#Headers],$B34:$AE34,"-",0) -> 75 | AO73: =_xlfn.XLOOKUP(AO$48,Tabell2[#Headers],$B34:$AE34,"-",0) -> 44 | AP73: =_xlfn.XLOOKUP(AP$48,Tabell2[#Headers],$B34:$AE34,"-",0) -> 75 | AQ73: =_xlfn.XLOOKUP(AQ$48,Tabell2[#Headers],$B34:$AE34,"-",0) -> 61 | AR73: =_xlfn.XLOOKUP(AR$48,Tabell2[#Headers],$B34:$AE34,"-",0) -> 69 | AS73: =_xlfn.XLOOKUP(AS$48,Tabell2[#Headers],$B34:$AE34,"-",0) -> 30 | AT73: =_xlfn.XLOOKUP(AT$48,Tabell2[#Headers],$B34:$AE34,"-",0) -> 50 | AU73: =_xlfn.XLOOKUP(AU$48,Tabell2[#Headers],$B34:$AE34,"-",0) -> 41 | AV73: =_xlfn.XLOOKUP(AV$48,Tabell2[#Headers],$B34:$AE34,"-",0) -> 31 | AW73: =_xlfn.XLOOKUP(AW$48,Tabell2[#Headers],$B34:$AE34,"-",0) -> 86 | AX73: =_xlfn.XLOOKUP(AX$48,Tabell2[#Headers],$B34:$AE34,"-",0) -> 36
AK74: 25 | AL74: E75 Domen (Kiberg-Vardø) | AM74: =_xlfn.XLOOKUP(AM$48,Tabell2[#Headers],$B35:$AE35,"-",0) -> 1 | AN74: =_xlfn.XLOOKUP(AN$48,Tabell2[#Headers],$B35:$AE35,"-",0) -> 13 | AO74: =_xlfn.XLOOKUP(AO$48,Tabell2[#Headers],$B35:$AE35,"-",0) -> 0 | AP74: =_xlfn.XLOOKUP(AP$48,Tabell2[#Headers],$B35:$AE35,"-",0) -> 6 | AQ74: =_xlfn.XLOOKUP(AQ$48,Tabell2[#Headers],$B35:$AE35,"-",0) -> 6 | AR74: =_xlfn.XLOOKUP(AR$48,Tabell2[#Headers],$B35:$AE35,"-",0) -> 0 | AS74: =_xlfn.XLOOKUP(AS$48,Tabell2[#Headers],$B35:$AE35,"-",0) -> 0 | AT74: =_xlfn.XLOOKUP(AT$48,Tabell2[#Headers],$B35:$AE35,"-",0) -> 4 | AU74: =_xlfn.XLOOKUP(AU$48,Tabell2[#Headers],$B35:$AE35,"-",0) -> 8 | AV74: =_xlfn.XLOOKUP(AV$48,Tabell2[#Headers],$B35:$AE35,"-",0) -> 2 | AW74: =_xlfn.XLOOKUP(AW$48,Tabell2[#Headers],$B35:$AE35,"-",0) -> 35 | AX74: =_xlfn.XLOOKUP(AX$48,Tabell2[#Headers],$B35:$AE35,"-",0) -> 5
AK75: 26 | AL75: Fv 888 Nordkynvegen (Ifjord - Mehamn) | AM75: =_xlfn.XLOOKUP(AM$48,Tabell2[#Headers],$B36:$AE36,"-",0) -> - | AN75: =_xlfn.XLOOKUP(AN$48,Tabell2[#Headers],$B36:$AE36,"-",0) -> 137 | AO75: =_xlfn.XLOOKUP(AO$48,Tabell2[#Headers],$B36:$AE36,"-",0) -> 48 | AP75: =_xlfn.XLOOKUP(AP$48,Tabell2[#Headers],$B36:$AE36,"-",0) -> 65 | AQ75: =_xlfn.XLOOKUP(AQ$48,Tabell2[#Headers],$B36:$AE36,"-",0) -> 62 | AR75: =_xlfn.XLOOKUP(AR$48,Tabell2[#Headers],$B36:$AE36,"-",0) -> 43 | AS75: =_xlfn.XLOOKUP(AS$48,Tabell2[#Headers],$B36:$AE36,"-",0) -> 66 | AT75: =_xlfn.XLOOKUP(AT$48,Tabell2[#Headers],$B36:$AE36,"-",0) -> 117 | AU75: =_xlfn.XLOOKUP(AU$48,Tabell2[#Headers],$B36:$AE36,"-",0) -> 71 | AV75: =_xlfn.XLOOKUP(AV$48,Tabell2[#Headers],$B36:$AE36,"-",0) -> 74 | AW75: =_xlfn.XLOOKUP(AW$48,Tabell2[#Headers],$B36:$AE36,"-",0) -> 177 | AX75: =_xlfn.XLOOKUP(AX$48,Tabell2[#Headers],$B36:$AE36,"-",0) -> 74
AK76: 27 | AL76: =VLOOKUP($AK76,Hovedtabell,AL$46,FALSE) -> Fv 98 Ifjordfjellet | AM76: =_xlfn.XLOOKUP(AM$48,Tabell2[#Headers],$B37:$AE37,"-",0) -> - | AN76: =_xlfn.XLOOKUP(AN$48,Tabell2[#Headers],$B37:$AE37,"-",0) -> 110 | AO76: =_xlfn.XLOOKUP(AO$48,Tabell2[#Headers],$B37:$AE37,"-",0) -> 54 | AP76: =_xlfn.XLOOKUP(AP$48,Tabell2[#Headers],$B37:$AE37,"-",0) -> 57 | AQ76: =_xlfn.XLOOKUP(AQ$48,Tabell2[#Headers],$B37:$AE37,"-",0) -> 49 | AR76: =_xlfn.XLOOKUP(AR$48,Tabell2[#Headers],$B37:$AE37,"-",0) -> 25 | AS76: =_xlfn.XLOOKUP(AS$48,Tabell2[#Headers],$B37:$AE37,"-",0) -> 37 | AT76: =_xlfn.XLOOKUP(AT$48,Tabell2[#Headers],$B37:$AE37,"-",0) -> 56 | AU76: =_xlfn.XLOOKUP(AU$48,Tabell2[#Headers],$B37:$AE37,"-",0) -> 39 | AV76: =_xlfn.XLOOKUP(AV$48,Tabell2[#Headers],$B37:$AE37,"-",0) -> 39 | AW76: =_xlfn.XLOOKUP(AW$48,Tabell2[#Headers],$B37:$AE37,"-",0) -> 84 | AX76: =_xlfn.XLOOKUP(AX$48,Tabell2[#Headers],$B37:$AE37,"-",0) -> 36
AK77: 28 | AL77: Fv 890 Kongsfjordfjellet | AM77: =_xlfn.XLOOKUP(AM$48,Tabell2[#Headers],$B38:$AE38,"-",0) -> - | AN77: =_xlfn.XLOOKUP(AN$48,Tabell2[#Headers],$B38:$AE38,"-",0) -> 75 | AO77: =_xlfn.XLOOKUP(AO$48,Tabell2[#Headers],$B38:$AE38,"-",0) -> 44 | AP77: =_xlfn.XLOOKUP(AP$48,Tabell2[#Headers],$B38:$AE38,"-",0) -> 73 | AQ77: =_xlfn.XLOOKUP(AQ$48,Tabell2[#Headers],$B38:$AE38,"-",0) -> 57 | AR77: =_xlfn.XLOOKUP(AR$48,Tabell2[#Headers],$B38:$AE38,"-",0) -> 53 | AS77: =_xlfn.XLOOKUP(AS$48,Tabell2[#Headers],$B38:$AE38,"-",0) -> 18 | AT77: =_xlfn.XLOOKUP(AT$48,Tabell2[#Headers],$B38:$AE38,"-",0) -> 29 | AU77: =_xlfn.XLOOKUP(AU$48,Tabell2[#Headers],$B38:$AE38,"-",0) -> 27 | AV77: =_xlfn.XLOOKUP(AV$48,Tabell2[#Headers],$B38:$AE38,"-",0) -> 23 | AW77: =_xlfn.XLOOKUP(AW$48,Tabell2[#Headers],$B38:$AE38,"-",0) -> 78 | AX77: =_xlfn.XLOOKUP(AX$48,Tabell2[#Headers],$B38:$AE38,"-",0) -> 29
AK78: 29 | AL78: Fv 98 Børselvfjellet (Børselv - Kunes) | AM78: =_xlfn.XLOOKUP(AM$48,Tabell2[#Headers],$B39:$AE39,"-",0) -> - | AN78: =_xlfn.XLOOKUP(AN$48,Tabell2[#Headers],$B39:$AE39,"-",0) -> 1 | AO78: =_xlfn.XLOOKUP(AO$48,Tabell2[#Headers],$B39:$AE39,"-",0) -> 0 | AP78: =_xlfn.XLOOKUP(AP$48,Tabell2[#Headers],$B39:$AE39,"-",0) -> 3 | AQ78: =_xlfn.XLOOKUP(AQ$48,Tabell2[#Headers],$B39:$AE39,"-",0) -> 0 | AR78: =_xlfn.XLOOKUP(AR$48,Tabell2[#Headers],$B39:$AE39,"-",0) -> 1 | AS78: =_xlfn.XLOOKUP(AS$48,Tabell2[#Headers],$B39:$AE39,"-",0) -> 0 | AT78: =_xlfn.XLOOKUP(AT$48,Tabell2[#Headers],$B39:$AE39,"-",0) -> 11 | AU78: =_xlfn.XLOOKUP(AU$48,Tabell2[#Headers],$B39:$AE39,"-",0) -> 0 | AV78: =_xlfn.XLOOKUP(AV$48,Tabell2[#Headers],$B39:$AE39,"-",0) -> 0 | AW78: =_xlfn.XLOOKUP(AW$48,Tabell2[#Headers],$B39:$AE39,"-",0) -> 15 | AX78: =_xlfn.XLOOKUP(AX$48,Tabell2[#Headers],$B39:$AE39,"-",0) -> 11
AK79: 30 | AL79: Fv 813 Beiarfjellet (Misvær - Storjord) | AM79: =_xlfn.XLOOKUP(AM$48,Tabell2[#Headers],$B40:$AE40,"-",0) -> - | AN79: =_xlfn.XLOOKUP(AN$48,Tabell2[#Headers],$B40:$AE40,"-",0) -> 17 | AO79: =_xlfn.XLOOKUP(AO$48,Tabell2[#Headers],$B40:$AE40,"-",0) -> 8 | AP79: =_xlfn.XLOOKUP(AP$48,Tabell2[#Headers],$B40:$AE40,"-",0) -> 2 | AQ79: =_xlfn.XLOOKUP(AQ$48,Tabell2[#Headers],$B40:$AE40,"-",0) -> 13 | AR79: =_xlfn.XLOOKUP(AR$48,Tabell2[#Headers],$B40:$AE40,"-",0) -> 16 | AS79: =_xlfn.XLOOKUP(AS$48,Tabell2[#Headers],$B40:$AE40,"-",0) -> 6 | AT79: =_xlfn.XLOOKUP(AT$48,Tabell2[#Headers],$B40:$AE40,"-",0) -> 19 | AU79: =_xlfn.XLOOKUP(AU$48,Tabell2[#Headers],$B40:$AE40,"-",0) -> 6 | AV79: =_xlfn.XLOOKUP(AV$48,Tabell2[#Headers],$B40:$AE40,"-",0) -> 10 | AW79: =_xlfn.XLOOKUP(AW$48,Tabell2[#Headers],$B40:$AE40,"-",0) -> 43 | AX79: =_xlfn.XLOOKUP(AX$48,Tabell2[#Headers],$B40:$AE40,"-",0) -> 2

Sheet Trend Midlertidig Stengt
C1: Trend MS
B4: Midlertidig stengt | E4: Finn nummeret til strekningen du ønsker i tabellen til høyre og skriv det i det gule feltet. | S4: Nr | T4: Fjellovergang/strekning
C5: 2 | D5: 3 | E5: 5 | F5: 7 | G5: 9 | H5: 11 | I5: 13 | J5: 15 | K5: 17 | L5: 19 | M5: 21 | N5: 23 | O5: 25 | S5: 1 | T5: =VLOOKUP(S5,Hovedtabell,2,FALSE) -> E6 Burfjord - Alta
B6: ↓ | D6: 2009 / 2010 | E6: 2010 / 2011 | F6: 2011 / 2012 | G6: 2012 / 2013 | H6: 2013 / 2014 | I6: 2014 / 2015 | J6: 2015 / 2016 | K6: 2016 / 2017 | L6: 2017 / 2018 | M6: 2018 / 2019 | N6: 2019/2020 | O6: 2021/2020 | S6: 2 | T6: E6 Hatter
D7: MS | E7: MS | F7: MS | G7: MS | H7: MS | I7: MS | J7: MS | K7: MS | L7: MS | M7: MS | N7: MS | O7: MS | S7: 3 | T7: E6 Kråkmofjellet
B8: 22 | C8: =VLOOKUP(B8,Hovedtabell,C5,FALSE) -> Fv 8038 Gjesværkrysset - Gjesvær | D8: =VLOOKUP($B$8,Hovedtabell,D5,FALSE) -> 9 | E8: 20 | F8: 8 | G8: 26 | H8: 30 | I8: 18 | J8: 16 | K8: 32 | L8: 28 | M8: =VLOOKUP($B$8,Hovedtabell,M5,FALSE) -> 18 | N8: =VLOOKUP($B$8,Hovedtabell,N5,FALSE) -> 65 | O8: 21 | S8: 4 | T8: E6 Kvænangsfjellet
C9: Snitt | D9: =AVERAGE($D$8:$O$8) -> 24.25 | E9: =AVERAGE($D$8:$O$8) -> 24.25 | F9: 24.25 | G9: 24.25 | H9: 24.25 | I9: 24.25 | J9: 24.25 | K9: 24.25 | L9: 24.25 | M9: 24.25 | N9: 24.25 | O9: 24.25 | S9: 5 | T9: E6 Saltfjellet
S10: 6 | T10: E6 Sennalandet
S11: 7 | T11: E6 Ulvsvågskaret
S12: 8 | T12: E10 Bjørnfjell
S13: 9 | T13: E12 Umbukta
S14: 10 | T14: E69 Hønsa - Repvåg
S15: 11 | T15: E69 Nordkapptunnelen - Honningsvåg
S16: 12 | T16: E69 Olderfjord - Honningsvåg
S17: 13 | T17: E69 Olderfjord - Hønsa
S18: 14 | T18: E69 Repvåg - Nordkapptunnelen
S19: 15 | T19: E69 Skarsvåg - Nordkapp
S20: 16 | T20: E69 Skipsfjordhøgda - Skarsvåg
S21: 17 | T21: Rv 73 Krutfjellet
S22: 18 | T22: Rv 77 Graddis
S23: 19 | T23: Rv 92 Kautokeino - Karasjok
S24: 20 | T24: E45 Kautokeino - Alta
S25: 21 | T25: Rv 94 Kvalsund - Hammerfest
S26: 22 | T26: Fv 8038 Gjesværkrysset - Gjesvær
S27: 23 | T27: Fv 889 Smørfjord - Havøysund
S28: 24 | T28: Fv 891 Båtsfjordfjellet
S29: 25 | T29: E75 Domen (Kiberg-Vardø)
L30: Gjennomsnitt (blå linje): | M30: =AVERAGE(D8:N8) -> 24.54545455 | S30: 26 | T30: Fv 888 Nordkynvegen (Ifjord - Mehamn)
S31: 27 | T31: Fv 98 Ifjordfjellet
S32: 28 | T32: Fv 890 Kongsfjordfjellet
S33: 29 | T33: =VLOOKUP(S33,Hovedtabell,2,FALSE) -> Fv 98 Børselvfjellet (Børselv - Kunes)
S34: 30 | T34: =VLOOKUP(S34,Hovedtabell,2,FALSE) -> Fv 813 Beiarfjellet (Misvær - Storjord)

Sheet Trend Kolonnekjøring
C1: Trend KK
B4: Kolonnekjøring | E4: Finn nummeret til strekningen du ønsker i tabellen til høyre og skriv det i det gule feltet til venstre. | S4: Nr | T4: Fjellovergang/strekning
C5: 2 | D5: 4 | E5: 6 | F5: 8 | G5: 10 | H5: 12 | I5: 14 | J5: 16 | K5: 18 | L5: 20 | M5: 22 | N5: 24 | O5: 26 | S5: 1 | T5: =VLOOKUP(S5,Hovedtabell,2,FALSE) -> E6 Burfjord - Alta
B6: ↓ | D6: 2009 / 2010 | E6: 2010 / 2011 | F6: 2011 / 2012 | G6: 2012 / 2013 | H6: 2013 / 2014 | I6: 2014 / 2015 | J6: 2015 / 2016 | K6: 2016 / 2017 | L6: 2017 / 2018 | M6: 2018 / 2019 | N6: 2019 / 2020 | O6: 2020 / 2021 | S6: 2 | T6: E6 Hatter
D7: KK | E7: KK | F7: KK | G7: KK | H7: KK | I7: KK | J7: KK | K7: KK | L7: KK | M7: KK | N7: KK | S7: 3 | T7: E6 Kråkmofjellet
B8: 22 | C8: =VLOOKUP($B$8,Hovedtabell,C5,FALSE) -> Fv 8038 Gjesværkrysset - Gjesvær | D8: =VLOOKUP($B$8,Hovedtabell,D5,FALSE) -> 16 | E8: 52 | F8: 11 | G8: 31 | H8: 22 | I8: 29 | J8: 7 | K8: 14 | L8: 10 | M8: 18 | N8: =VLOOKUP($B$8,Hovedtabell,N5,FALSE) -> 55 | O8: 22 | S8: 4 | T8: E6 Kvænangsfjellet
C9: Snitt | D9: =AVERAGE($D$8:$O$8) -> 23.91666667 | E9: =AVERAGE($D$8:$O$8) -> 23.91666667 | F9: 23.91666667 | G9: 23.91666667 | H9: 23.91666667 | I9: 23.91666667 | J9: 23.91666667 | K9: 23.91666667 | L9: 23.91666667 | M9: 23.91666667 | N9: 23.91666667 | O9: 23.91666667 | S9: 5 | T9: E6 Saltfjellet
S10: 6 | T10: E6 Sennalandet
S11: 7 | T11: E6 Ulvsvågskaret
S12: 8 | T12: E10 Bjørnfjell
S13: 9 | T13: E12 Umbukta
S14: 10 | T14: E69 Hønsa - Repvåg
S15: 11 | T15: E69 Nordkapptunnelen - Honningsvåg
S16: 12 | T16: E69 Olderfjord - Honningsvåg
S17: 13 | T17: E69 Olderfjord - Hønsa
S18: 14 | T18: E69 Repvåg - Nordkapptunnelen
S19: 15 | T19: E69 Skarsvåg - Nordkapp
S20: 16 | T20: E69 Skipsfjordhøgda - Skarsvåg
S21: 17 | T21: Rv 73 Krutfjellet
S22: 18 | T22: Rv 77 Graddis
S23: 19 | T23: Rv 92 Kautokeino - Karasjok
S24: 20 | T24: E45 Kautokeino - Alta
S25: 21 | T25: Rv 94 Kvalsund - Hammerfest
S26: 22 | T26: Fv 8038 Gjesværkrysset - Gjesvær
S27: 23 | T27: Fv 889 Smørfjord - Havøysund
S28: 24 | T28: Fv 891 Båtsfjordfjellet
S29: 25 | T29: E75 Domen (Kiberg-Vardø)
L30: Gjennomsnitt (blå linje): | M30: =AVERAGE(D8:N8) -> 24.09090909 | S30: 26 | T30: Fv 888 Nordkynvegen (Ifjord - Mehamn)
S31: 27 | T31: Fv 98 Ifjordfjellet
S32: 28 | T32: Fv 890 Kongsfjordfjellet
S33: 29 | T33: =VLOOKUP(S33,Hovedtabell,2,FALSE) -> Fv 98 Børselvfjellet (Børselv - Kunes)
S34: 30 | T34: =VLOOKUP(S34,Hovedtabell,2,FALSE) -> Fv 813 Beiarfjellet (Misvær - Storjord)

Sheet Søyle MS
C1: Søyle MS - Sammenligning
B4: Midlertidig stengt - Sammenligning | E4: Finn numrene til strekningene du ønsker i tabellen til høyre og skriv dem i de gule feltene. | S4: Nr | T4: Fjellovergang/strekning
C5: 2 | D5: 3 | E5: 5 | F5: 7 | G5: 9 | H5: 11 | I5: 13 | J5: 15 | K5: 17 | L5: 19 | M5: 21 | N5: 23 | O5: 25 | S5: 1 | T5: =VLOOKUP(S5,Hovedtabell,2,FALSE) -> E6 Burfjord - Alta
B6: ↓ | D6: 2009 / 2010 | E6: 2010 / 2011 | F6: 2011 / 2012 | G6: 2012 / 2013 | H6: 2013 / 2014 | I6: 2014 / 2015 | J6: 2015 / 2016 | K6: 2016 / 2017 | L6: 2017 / 2018 | M6: 2018 / 2019 | N6: 2019 / 2020 | O6: 2020 / 2021 | S6: 2 | T6: E6 Hatter
D7: MS | E7: MS | F7: MS | G7: MS | H7: MS | I7: MS | J7: MS | K7: MS | L7: MS | M7: MS | N7: MS | O7: MS | S7: 3 | T7: E6 Kråkmofjellet
B8: 5 | C8: =VLOOKUP(B8,Hovedtabell,C5,FALSE) -> E6 Saltfjellet | D8: =VLOOKUP($B$8,Hovedtabell,D5,FALSE) -> 9 | E8: 31 | F8: 29 | G8: 10 | H8: 46 | I8: 31 | J8: 19 | K8: 49 | L8: 12 | M8: =VLOOKUP($B$8,Hovedtabell,M5,FALSE) -> 39 | N8: =VLOOKUP($B$8,Hovedtabell,N5,FALSE) -> 88 | O8: 31 | S8: 4 | T8: E6 Kvænangsfjellet
B9: 8 | C9: =VLOOKUP(B9,Hovedtabell,C5,FALSE) -> E10 Bjørnfjell | D9: =VLOOKUP($B$9,Hovedtabell,D5,FALSE) -> 8 | E9: 35 | F9: 13 | G9: 38 | H9: 55 | I9: 40 | J9: 28 | K9: 59 | L9: 22 | M9: 47 | N9: 65 | O9: =VLOOKUP($B$9,Hovedtabell,O5,FALSE) -> 32 | S9: 5 | T9: E6 Saltfjellet
S10: 6 | T10: E6 Sennalandet
S11: 7 | T11: E6 Ulvsvågskaret
S12: 8 | T12: E10 Bjørnfjell
S13: 9 | T13: E12 Umbukta
S14: 10 | T14: E69 Hønsa - Repvåg
S15: 11 | T15: E69 Nordkapptunnelen - Honningsvåg
S16: 12 | T16: E69 Olderfjord - Honningsvåg
S17: 13 | T17: E69 Olderfjord - Hønsa
S18: 14 | T18: E69 Repvåg - Nordkapptunnelen
S19: 15 | T19: E69 Skarsvåg - Nordkapp
S20: 16 | T20: E69 Skipsfjordhøgda - Skarsvåg
S21: 17 | T21: Rv 73 Krutfjellet
S22: 18 | T22: Rv 77 Graddis
S23: 19 | T23: Rv 92 Kautokeino - Karasjok
S24: 20 | T24: E45 Kautokeino - Alta
S25: 21 | T25: Rv 94 Kvalsund - Hammerfest
S26: 22 | T26: Fv 8038 Gjesværkrysset - Gjesvær
S27: 23 | T27: Fv 889 Smørfjord - Havøysund
S28: 24 | T28: Fv 891 Båtsfjordfjellet
S29: 25 | T29: E75 Domen (Kiberg-Vardø)
S30: 26 | T30: Fv 888 Nordkynvegen (Ifjord - Mehamn)
S31: 27 | T31: Fv 98 Ifjordfjellet
S32: 28 | T32: Fv 890 Kongsfjordfjellet
S33: 29 | T33: Fv 98 Børselvfjellet (Børselv - Kunes)
S34: 30 | T34: =VLOOKUP(S34,Hovedtabell,2,FALSE) -> Fv 813 Beiarfjellet (Misvær - Storjord)

Sheet Søyle KK
C1: Søyle KK - Sammenligning
B4: Kolonnekjøring - Sammenligning | E4: Finn numrene til strekningene du ønsker i tabellen til høyre og skriv dem i de gule feltene. | S4: Nr | T4: Fjellovergang/strekning
C5: 2 | D5: 4 | E5: 6 | F5: 8 | G5: 10 | H5: 12 | I5: 14 | J5: 16 | K5: 18 | L5: 20 | M5: 22 | N5: 24 | O5: 26 | S5: 1 | T5: =VLOOKUP(S5,Hovedtabell,2,FALSE) -> E6 Burfjord - Alta
B6: ↓ | D6: 2009 / 2010 | E6: 2010 / 2011 | F6: 2011 / 2012 | G6: 2012 / 2013 | H6: 2013 / 2014 | I6: 2014 / 2015 | J6: 2015 / 2016 | K6: 2016 / 2017 | L6: 2017 / 2018 | M6: 2018 / 2019 | N6: 2019 / 2020 | O6: 2020 / 2021 | S6: 2 | T6: E6 Hatter
D7: KK | E7: KK | F7: KK | G7: KK | H7: KK | I7: KK | J7: KK | K7: KK | L7: KK | M7: KK | N7: KK | O7: KK | S7: 3 | T7: E6 Kråkmofjellet
B8: 5 | C8: =VLOOKUP(B8,Hovedtabell,C5,FALSE) -> E6 Saltfjellet | D8: =VLOOKUP($B$8,Hovedtabell,D5,FALSE) -> 6 | E8: 28 | F8: 30 | G8: 7 | H8: 38 | I8: 31 | J8: 17 | K8: 44 | L8: 11 | M8: =VLOOKUP($B$8,Hovedtabell,M5,FALSE) -> 17 | N8: =VLOOKUP($B$8,Hovedtabell,N5,FALSE) -> 78 | O8: 22 | S8: 4 | T8: E6 Kvænangsfjellet
B9: 8 | C9: =VLOOKUP(B9,Hovedtabell,C5,FALSE) -> E10 Bjørnfjell | D9: =VLOOKUP($B$9,Hovedtabell,D5,FALSE) -> 11 | E9: 30 | F9: 8 | G9: 21 | H9: 43 | I9: 18 | J9: 18 | K9: 28 | L9: 8 | M9: 41 | N9: 63 | O9: =VLOOKUP($B$9,Hovedtabell,O5,FALSE) -> 19 | S9: 5 | T9: E6 Saltfjellet
S10: 6 | T10: E6 Sennalandet
S11: 7 | T11: E6 Ulvsvågskaret
S12: 8 | T12: E10 Bjørnfjell
S13: 9 | T13: E12 Umbukta
S14: 10 | T14: E69 Hønsa - Repvåg
S15: 11 | T15: E69 Nordkapptunnelen - Honningsvåg
S16: 12 | T16: E69 Olderfjord - Honningsvåg
S17: 13 | T17: E69 Olderfjord - Hønsa
S18: 14 | T18: E69 Repvåg - Nordkapptunnelen
S19: 15 | T19: E69 Skarsvåg - Nordkapp
S20: 16 | T20: E69 Skipsfjordhøgda - Skarsvåg
S21: 17 | T21: Rv 73 Krutfjellet
S22: 18 | T22: Rv 77 Graddis
S23: 19 | T23: Rv 92 Kautokeino - Karasjok
S24: 20 | T24: E45 Kautokeino - Alta
S25: 21 | T25: Rv 94 Kvalsund - Hammerfest
S26: 22 | T26: Fv 8038 Gjesværkrysset - Gjesvær
S27: 23 | T27: Fv 889 Smørfjord - Havøysund
S28: 24 | T28: Fv 891 Båtsfjordfjellet
S29: 25 | T29: E75 Domen (Kiberg-Vardø)
S30: 26 | T30: Fv 888 Nordkynvegen (Ifjord - Mehamn)
S31: 27 | T31: Fv 98 Ifjordfjellet
S32: 28 | T32: Fv 890 Kongsfjordfjellet
S33: 29 | T33: Fv 98 Børselvfjellet (Børselv - Kunes)
S34: 30 | T34: =VLOOKUP(S34,Hovedtabell,2,FALSE) -> Fv 813 Beiarfjellet (Misvær - Storjord)

Sheet Søyle MS alle

Sheet Søyle KK alle
